Workbook

Sheet Start
D11: Tabelid 2
D13: Andmeloendid
D15: Sorteerimine, filtreerimine, kokkuvõted ja koondid

Sheet Sisukord
B4: Andmeloendite põhiomadused ja põhitegevused nendega
B5: Arvutite müükide arvestus
B6: Töötajate nimekiri
B7: Puidu müükide tabel
B8: Tabeli kirjete sorteerimine ja grupeerimine
B9: Päringud ja filtreerimine
B10: Autofilter
B11: Arendatud filter
B12: Makro kasutamine arendatud filtriga
B13: Kokkuvõtted, koondid jmt
B14: Vahekokkuvõtted - Subtotals
B15: Risttabelid - Pivot Table Report
B16: Funktsioonid COUNTIF ja SUMIF
B17: Andmebaaside funktsioonid

Sheet Loendid
A3: Andmeloendite põhiomadused ja põhitegevused nendega
H4: Arvutid
H6: Mark | I6: Protsessori tüüp | J6: Takt- sagedus | K6: Põhimälu maht | L6: Kõvaketta maht | M6: Hind
H7: Aragorn | I7: AMD Athlon64 | J7: 3 | K7: 512 | L7: 160 | M7: 499
H8: Arven | I8: Intel Core 2 | J8: 2.6 | K8: 256 | L8: 200 | M8: 369
H9: Balrog | I9: Intel Celeron | J9: 2.8 | K9: 256 | L9: 80 | M9: 419
H10: Eldar | I10: Intel Xeon | J10: 3 | K10: 512 | L10: 160 | M10: 465
H11: Elend | I11: Intel Celeron | J11: 4 | K11: 2048 | L11: 400 | M11: 1299
H12: Faram | I12: AMD Athlon64 | J12: 3 | K12: 512 | L12: 210 | M12: 599
H13: Frodo | I13: AMD Athlon64 | J13: 3 | K13: 4072 | L13: 500 | M13: 1330
B14: Põhitegevused | H14: Gandalf | I14: Intel Xeon | J14: 3.2 | K14: 512 | L14: 160 | M14: 849
H15: Grimbold | I15: Intel Core 2 | J15: 3.8 | K15: 1024 | L15: 320 | M15: 1149
H16: Kalvar | I16: Intel Xeon | J16: 3 | K16: 512 | L16: 160 | M16: 699
H17: Marvin | I17: Intel Celeron | J17: 3 | K17: 512 | L17: 160 | M17: 599
H18: Rohan | I18: AMD Athlon64 | J18: 3.5 | K18: 512 | L18: 160 | M18: 589
H19: Sauron | I19: Intel Xeon | J19: 2.5 | K19: 256 | L19: 180 | M19: 339

Sheet A_müügid
B3: Arvutite müükide arvestus | F3: arvutid
D5: Kokku | E5: =SUM(Arv) -> 90 | G5: =SUM(Maksumus) -> 62999
B7: Kuupäev | C7: Linn | D7: Arvuti | E7: Arv | F7: Hind | G7: Maksumus
B8: 2013-01-02 | C8: Tallinn | D8: Frodo | E8: 2 | F8: =VLOOKUP(Arvuti, Arvutid, 6, 0) -> 1330 | G8: =Hind * Arv -> 2660
B9: 2013-01-02 | C9: Valga | D9: Balrog | E9: 1 | F9: 419 | G9: 419
B10: 2013-01-03 | C10: Võru | D10: Gandalf | E10: 2 | F10: 849 | G10: 1698
B11: 2013-01-03 | C11: Tallinn | D11: Balrog | E11: 3 | F11: 419 | G11: 1257
B12: 2013-01-03 | C12: Tallinn | D12: Aragorn | E12: 2 | F12: 499 | G12: 998
B13: 2013-01-04 | C13: Tartu | D13: Balrog | E13: 5 | F13: 419 | G13: 2095
B14: 2013-01-04 | C14: Tallinn | D14: Eldar | E14: 3 | F14: 465 | G14: 1395
B15: 2013-01-07 | C15: Valga | D15: Balrog | E15: 6 | F15: 419 | G15: 2514
B16: 2013-01-07 | C16: Pärnu | D16: Eldar | E16: 3 | F16: 465 | G16: 1395
B17: 2013-01-07 | C17: Valga | D17: Frodo | E17: 1 | F17: 1330 | G17: 1330
B18: 2013-01-07 | C18: Tallinn | D18: Faram | E18: 1 | F18: 599 | G18: 599
B19: 2013-01-09 | C19: Tallinn | D19: Grimbold | E19: 6 | F19: 1149 | G19: 6894
B20: 2013-01-10 | C20: Pärnu | D20: Rohan | E20: 4 | F20: 589 | G20: 2356
B21: 2013-01-10 | C21: Pärnu | D21: Elend | E21: 1 | F21: 1299 | G21: 1299
B22: 2013-01-10 | C22: Tartu | D22: Sauron | E22: 2 | F22: 339 | G22: 678
B23: 2013-01-11 | C23: Tartu | D23: Balrog | E23: 2 | F23: 419 | G23: 838
B24: 2013-01-11 | C24: Tallinn | D24: Marvin | E24: 1 | F24: 599 | G24: 599
B25: 2013-01-11 | C25: Valga | D25: Aragorn | E25: 1 | F25: 499 | G25: 499
B26: 2013-01-14 | C26: Tartu | D26: Frodo | E26: 4 | F26: 1330 | G26: 5320
B27: 2013-01-14 | C27: Pärnu | D27: Gandalf | E27: 3 | F27: 849 | G27: 2547
B28: 2013-01-14 | C28: Valga | D28: Kalvar | E28: 2 | F28: 699 | G28: 1398
B29: 2013-01-16 | C29: Tallinn | D29: Arven | E29: 5 | F29: 369 | G29: 1845
B30: 2013-01-17 | C30: Tallinn | D30: Kalvar | E30: 7 | F30: 699 | G30: 4893
B31: 2013-01-17 | C31: Tartu | D31: Aragorn | E31: 3 | F31: 499 | G31: 1497
B32: 2013-01-18 | C32: Tallinn | D32: Aragorn | E32: 1 | F32: 499 | G32: 499
B33: 2013-01-18 | C33: Pärnu | D33: Eldar | E33: 1 | F33: 465 | G33: 465
B34: 2013-01-19 | C34: Võru | D34: Elend | E34: 5 | F34: 1299 | G34: 6495
B35: 2013-01-19 | C35: Tallinn | D35: Faram | E35: 3 | F35: 599 | G35: 1797
B36: 2013-01-19 | C36: Tartu | D36: Kalvar | E36: 1 | F36: 699 | G36: 699
B37: 2013-01-20 | C37: Tallinn | D37: Elend | E37: 2 | F37: 1299 | G37: 2598
B38: 2013-01-20 | C38: Võru | D38: Sauron | E38: 3 | F38: 339 | G38: 1017
B39: 2013-01-21 | C39: Pärnu | D39: Arven | E39: 1 | F39: 369 | G39: 369
B40: 2013-01-25 | C40: Võru | D40: Sauron | E40: 1 | F40: 339 | G40: 339
B41: 2013-01-26 | C41: Pärnu | D41: Gandalf | E41: 2 | F41: 849 | G41: 1698

Sheet Töötajad
D1: aa
D2: =J7 > AVERAGE(Palk) -> FALSE | F2: =AVERAGE(Palk) -> 1181.30303 | G2: Sugu | H2: Palk | I2: Vanus | K2: Osakond | L2: Sugu | N2: Amet
B3: Töötajad | G3: mees | H3: <1000 | I3: >50 | K3: Ost | L3: naine
B4: sortimine | C4: autofilter | D4: arend. filter | E4: vahe | F4: risttabel | K4: Ladu | L4: naine
N5: Amet
B6: Isikukood | C6: Eesnimi | D6: Perenimi | E6: Sugu | F6: Sünniaeg | G6: Vanus | H6: Osakond | I6: Amet | J6: Palk | N6: tööline
B7: 38502110722 | C7: Karl | D7: Agur | E7: mees | F7: =DATE(MID(B7,2,2),MID(B7,4,2),MID(B7,6,2)) -> 1985-02-11 | G7: =INT((TODAY()-F7)/365.25) -> 28 | H7: Tootmine | I7: tööline | J7: 720 | N7: sekretär
B8: 48704250911 | C8: Helen | D8: Aigro | E8: naine | F8: 1987-04-25 | G8: 26 | H8: Müük | I8: sekretär | J8: 850 | N8: lukksepp
B9: 36405130719 | C9: Erki | D9: Ainsaar | E9: mees | F9: 1964-05-13 | G9: 49 | H9: Tootmine | I9: lukksepp | J9: 1150 | N9: sekretäär
B10: 46605150941 | C10: Maarja | D10: Ambros | E10: naine | F10: 1966-05-15 | G10: 47 | H10: Ost | I10: sekretäär | J10: 850 | N10: kompekteerija
B11: 34708140585 | C11: Erki | D11: Arsenov | E11: mees | F11: 1947-08-14 | G11: 66 | H11: Ladu | I11: kompekteerija | J11: 1030 | N11: raamatupidaja
B12: 45711080030 | C12: Kristel | D12: Astok | E12: naine | F12: 1957-11-08 | G12: 56 | H12: Finants | I12: raamatupidaja | J12: 1274 | N12: müügijuht
B13: 47110070151 | C13: Erika | D13: Bachmann | E13: naine | F13: 1971-10-07 | G13: 42 | H13: Müük | I13: müügijuht | J13: 1350 | N13: koristaja
B14: 35404050446 | C14: Reijo | D14: Bauman | E14: mees | F14: 1954-04-05 | G14: 59 | H14: Tootmine | I14: tööline | J14: 1050 | N14: dispetser
B15: 44203130136 | C15: Mirja | D15: Bergmann | E15: naine | F15: 1942-03-13 | G15: 71 | H15: Majandus | I15: koristaja | J15: 650 | N15: autojuht
B16: 47110060467 | C16: Elvi | D16: Berk | E16: naine | F16: 1971-10-06 | G16: 42 | H16: Transport | I16: dispetser | J16: 960 | N16: juhataja
B17: 34404190222 | C17: Kaivo | D17: Berk | E17: mees | F17: 1944-04-19 | G17: 69 | H17: Ladu | I17: tööline | J17: 760 | N17: treial
B18: 33904050217 | C18: Olav | D18: Berk | E18: mees | F18: 1939-04-05 | G18: 74 | H18: Tootmine | I18: tööline | J18: 870 | N18: meister
B19: 38302070214 | C19: Priit | D19: Burmeister | E19: mees | F19: 1983-02-07 | G19: 30 | H19: Transport | I19: autojuht | J19: 1150 | N19: jurist
B20: 47102200902 | C20: Ene | D20: Burmeister | E20: naine | F20: 1971-02-20 | G20: 42 | H20: Finants | I20: raamatupidaja | J20: 1070 | N20: diiler
B21: 36802240722 | C21: Ahto | D21: Danilov | E21: mees | F21: 1968-02-24 | G21: 45 | H21: Transport | I21: autojuht | J21: 1370 | N21: valvur
B22: 48305030944 | C22: Laine | D22: Eek | E22: naine | F22: 1983-05-03 | G22: 30 | H22: Majandus | I22: sekretär | J22: 770 | N22: referent
B23: 48007150516 | C23: Erna | D23: Eek | E23: naine | F23: 1980-07-15 | G23: 33 | H23: Tootmine | I23: tööline | J23: 830
B24: 47302150417 | C24: Mare | D24: Eesmaa | E24: naine | F24: 1973-02-15 | G24: 40 | H24: Majandus | I24: juhataja | J24: 2540
B25: 47311270496 | C25: Vilma | D25: Eesmaa | E25: naine | F25: 1973-11-27 | G25: 39 | H25: Finants | I25: raamatupidaja | J25: 1160
B26: 34103030178 | C26: Einar | D26: Ehala | E26: mees | F26: 1941-03-03 | G26: 72 | H26: Tootmine | I26: treial | J26: 1027
B27: 47110240441 | C27: Ene | D27: Elmik | E27: naine | F27: 1971-10-24 | G27: 42 | H27: Müük | I27: müügijuht | J27: 1270
B28: 36110090988 | C28: Aadu | D28: Elson | E28: mees | F28: 1961-10-09 | G28: 52 | H28: Tootmine | I28: tööline | J28: 1120
B29: 34110060017 | C29: Marko | D29: Erikson | E29: mees | F29: 1941-10-06 | G29: 72 | H29: Tootmine | I29: meister | J29: 1378
B30: 38205190379 | C30: Aadu | D30: Heinlo | E30: mees | F30: 1982-05-19 | G30: 31 | H30: Tootmine | I30: lukksepp | J30: 860
B31: 46809210954 | C31: Aigi | D31: Härm | E31: naine | F31: 1968-09-21 | G31: 45 | H31: Ost | I31: sekretär | J31: 1080
B32: 44311130888 | C32: Sirje | D32: Härm | E32: naine | F32: 1943-11-13 | G32: 69 | H32: Ost | I32: sekretär | J32: 860
B33: 44111240925 | C33: Leida | D33: Jaanus | E33: naine | F33: 1941-11-24 | G33: 71 | H33: Tootmine | I33: tööline | J33: 960
B34: 37002030149 | C34: Kristjan | D34: Jürimäe | E34: mees | F34: 1970-02-03 | G34: 43 | H34: Tootmine | I34: lukksepp | J34: 1270
B35: 46809170171 | C35: Jana | D35: Kaal | E35: naine | F35: 1968-09-17 | G35: 45 | H35: Müük | I35: sekretär | J35: 860
B36: 34906210936 | C36: Jaan | D36: Kaasik | E36: mees | F36: 1949-06-21 | G36: 64 | H36: Transport | I36: autojuht | J36: 1090
B37: 38301080820 | C37: Meelis | D37: Kalju | E37: mees | F37: 1983-01-08 | G37: 30 | H37: Ladu | I37: tööline | J37: 770
B38: 34107110230 | C38: Hendrik | D38: Kanter | E38: mees | F38: 1941-07-11 | G38: 72 | H38: Tootmine | I38: juhataja | J38: 3270
B39: 48801180808 | C39: Erika | D39: Kasemets | E39: naine | F39: =DATE(MID(B39,2,2),MID(B39,4,2),MID(B39,6,2)) -> 1988-01-18 | G39: =INT((TODAY()-F39)/365.25) -> 25 | H39: Müük | I39: sekretär | J39: 980
B40: 46908050804 | C40: Malle | D40: Kivioja | E40: naine | F40: 1969-08-05 | G40: 44 | H40: Finants | I40: juhataja | J40: 3650
B41: 36009040214 | C41: Andrus | D41: Koort | E41: mees | F41: 1960-09-04 | G41: 53 | H41: Tootmine | I41: treial | J41: 1150
B42: 44406270104 | C42: Sirje | D42: Kreen | E42: naine | F42: 1944-06-27 | G42: 69 | H42: Tootmine | I42: tööline | J42: 850
B43: 48210210529 | C43: Faina | D43: Kukk | E43: naine | F43: 1982-10-21 | G43: 31 | H43: Müük | I43: sekretär | J43: 870
B44: 33907250511 | C44: Riho | D44: Kuusk | E44: mees | F44: 1939-07-25 | G44: 74 | H44: Tootmine | I44: tööline | J44: 1030
B45: 37509120658 | C45: Boris | D45: Küünemäe | E45: mees | F45: 1975-09-12 | G45: 38 | H45: Transport | I45: autojuht | J45: 970
B46: 36008130050 | C46: Einar | D46: Laanepõld | E46: mees | F46: 1960-08-13 | G46: 53 | H46: Ladu | I46: tööline | J46: 750
B47: 37803090504 | C47: Jaan | D47: Laubre | E47: mees | F47: 1978-03-09 | G47: 35 | H47: Finants | I47: raamatupidaja | J47: 1270
B48: 37005020007 | C48: Erki | D48: Lepiksoo | E48: mees | F48: 1970-05-02 | G48: 43 | H48: Tootmine | I48: treial | J48: 1180
B49: 47010010868 | C49: Faina | D49: Lepp | E49: naine | F49: 1970-10-01 | G49: 43 | H49: Finants | I49: jurist | J49: 2350
B50: 45604030496 | C50: Malle | D50: Ligi | E50: naine | F50: 1956-04-03 | G50: 57 | H50: Finants | I50: jurist | J50: 2270
B51: 47005130963 | C51: Heli | D51: Lind | E51: naine | F51: 1970-05-13 | G51: 43 | H51: Tootmine | I51: tööline | J51: 750
B52: 38201060031 | C52: Raivo | D52: Lokk | E52: mees | F52: 1982-01-06 | G52: 31 | H52: Tootmine | I52: tööline | J52: 970
B53: 35105180673 | C53: Eino | D53: Luige | E53: mees | F53: 1951-05-18 | G53: 62 | H53: Tootmine | I53: tööline | J53: 760
B54: 34309100049 | C54: Madis | D54: Maasalu | E54: mees | F54: 1943-09-10 | G54: 70 | H54: Tootmine | I54: tööline | J54: 1080
B55: 35009030894 | C55: Margus | D55: Maasalu | E55: mees | F55: 1950-09-03 | G55: 63 | H55: Tootmine | I55: tööline | J55: 1070
B56: 35809050610 | C56: Aadu | D56: Malva | E56: mees | F56: 1958-09-05 | G56: 55 | H56: Transport | I56: autojuht | J56: 1180
B57: 48208230166 | C57: Tiina | D57: Markus | E57: naine | F57: 1982-08-23 | G57: 31 | H57: Ladu | I57: tööline | J57: 750
B58: 34408020335 | C58: Aare | D58: Marmor | E58: mees | F58: 1944-08-02 | G58: 69 | H58: Tootmine | I58: meister | J58: 1420
B59: 34506190557 | C59: Reijo | D59: Meigas | E59: mees | F59: 1945-06-19 | G59: 68 | H59: Ladu | I59: tööline | J59: 960
B60: 34112180084 | C60: Anton | D60: Meister | E60: mees | F60: 1941-12-18 | G60: 71 | H60: Ladu | I60: juhataja | J60: 2270
B61: 35408240148 | C61: Arnold | D61: Merilaid | E61: mees | F61: 1954-08-24 | G61: 59 | H61: Transport | I61: autojuht | J61: 940
B62: 36203030988 | C62: Kaivo | D62: Mets | E62: mees | F62: 1962-03-03 | G62: 51 | H62: Tootmine | I62: meister | J62: 1380
B63: 37303030624 | C63: Aarne | D63: Mikson | E63: mees | F63: 1973-03-03 | G63: 40 | H63: Ost | I63: juhataja | J63: 2960
B64: 48109130038 | C64: Kersti | D64: Miller | E64: naine | F64: 1981-09-13 | G64: 32 | H64: Tootmine | I64: tööline | J64: 850
B65: 37003260243 | C65: Reijo | D65: Muld | E65: mees | F65: 1970-03-26 | G65: 43 | H65: Tootmine | I65: tööline | J65: 1190
B66: 45903030319 | C66: Valve | D66: Mäesalu | E66: naine | F66: 1959-03-03 | G66: 54 | H66: Ost | I66: sekretär | J66: 1120
B67: 37906080465 | C67: Kristjan | D67: Mägi | E67: mees | F67: 1979-06-08 | G67: 34 | H67: Müük | I67: diiler | J67: 1090
B68: 36709040675 | C68: Tarmo | D68: Müller | E68: mees | F68: 1967-09-04 | G68: 46 | H68: Müük | I68: müügijuht | J68: 2080
B69: 35104120460 | C69: Reijo | D69: Müürsepp | E69: mees | F69: 1951-04-12 | G69: 62 | H69: Tootmine | I69: lukksepp | J69: 1160
B70: 36512210549 | C70: Paul | D70: Naaber | E70: mees | F70: 1965-12-21 | G70: 47 | H70: Transport | I70: autojuht | J70: 1050
B71: 38303010526 | C71: Jaan | D71: Noormets | E71: mees | F71: =DATE(MID(B71,2,2),MID(B71,4,2),MID(B71,6,2)) -> 1983-03-01 | G71: =INT((TODAY()-F71)/365.25) -> 30 | H71: Müük | I71: diiler | J71: 1160
B72: 38008200347 | C72: Arnold | D72: Norak | E72: mees | F72: 1980-08-20 | G72: 33 | H72: Tootmine | I72: tööline | J72: 1070
B73: 36406070555 | C73: Aarne | D73: Norak | E73: mees | F73: 1964-06-07 | G73: 49 | H73: Tootmine | I73: tööline | J73: 930
B74: 37708220891 | C74: Ando | D74: Nõmmik | E74: mees | F74: 1977-08-22 | G74: 36 | H74: Transport | I74: autojuht | J74: 1160
B75: 35001130124 | C75: Aarne | D75: Oks | E75: mees | F75: 1950-01-13 | G75: 63 | H75: Transport | I75: autojuht | J75: 1050
B76: 45809140289 | C76: Kristiina | D76: Oks | E76: naine | F76: 1958-09-14 | G76: 55 | H76: Transport | I76: dispetser | J76: 940
B77: 38206070961 | C77: Reijo | D77: Okspuu | E77: mees | F77: 1982-06-07 | G77: 31 | H77: Müük | I77: diiler | J77: 980
B78: 48105090295 | C78: Annika | D78: Paju | E78: naine | F78: 1981-05-09 | G78: 32 | H78: Majandus | I78: sekretär | J78: 760
B79: 38005180669 | C79: Hanno | D79: Pajusaar | E79: mees | F79: 1980-05-18 | G79: 33 | H79: Tootmine | I79: tööline | J79: 1140
B80: 46709190988 | C80: Selma | D80: Parre | E80: naine | F80: 1967-09-19 | G80: 46 | H80: Ladu | I80: tööline | J80: 1070
B81: 37612170754 | C81: Eevald | D81: Parts | E81: mees | F81: 1976-12-17 | G81: 36 | H81: Tootmine | I81: lukksepp | J81: 1290
B82: 37308230939 | C82: Madis | D82: Paulus | E82: mees | F82: 1973-08-23 | G82: 40 | H82: Tootmine | I82: tööline | J82: 1130
B83: 36907260696 | C83: Hanno | D83: Pedak | E83: mees | F83: 1969-07-26 | G83: 44 | H83: Transport | I83: autojuht | J83: 1070
B84: 38211130833 | C84: Meelis | D84: Petrov | E84: mees | F84: 1982-11-13 | G84: 30 | H84: Tootmine | I84: tööline | J84: 860
B85: 47508150058 | C85: Irma | D85: Piirsalu | E85: naine | F85: 1975-08-15 | G85: 38 | H85: Tootmine | I85: tööline | J85: 1050
B86: 34204170615 | C86: Aadu | D86: Pulk | E86: mees | F86: 1942-04-17 | G86: 71 | H86: Transport | I86: valvur | J86: 670
B87: 45710100356 | C87: Airi | D87: Põld | E87: naine | F87: 1957-10-10 | G87: 56 | H87: Ladu | I87: kompekteerija | J87: 1160
B88: 45902200391 | C88: Evelin | D88: Põld | E88: naine | F88: 1959-02-20 | G88: 54 | H88: Majandus | I88: sekretär | J88: 960
B89: 46307080393 | C89: Malle | D89: Põldmaa | E89: naine | F89: 1963-07-08 | G89: 50 | H89: Tootmine | I89: tööline | J89: 970
B90: 47605040659 | C90: Hilja | D90: Raid | E90: naine | F90: 1976-05-04 | G90: 37 | H90: Müük | I90: sekretär | J90: 960
B91: 47111150090 | C91: Tiina | D91: Rajamäe | E91: naine | F91: 1971-11-15 | G91: 41 | H91: Transport | I91: dispetser | J91: 1070
B92: 44012150956 | C92: Aasa | D92: Randla | E92: naine | F92: 1940-12-15 | G92: 72 | H92: Majandus | I92: koristaja | J92: 720
B93: 38104220473 | C93: Aare | D93: Raudsepp | E93: mees | F93: 1981-04-22 | G93: 32 | H93: Müük | I93: diiler | J93: 1050
B94: 37111200348 | C94: Margus | D94: Roosimägi | E94: mees | F94: 1971-11-20 | G94: 41 | H94: Transport | I94: autojuht | J94: 1360
B95: 34810190405 | C95: Karl | D95: Salu | E95: mees | F95: 1948-10-19 | G95: 65 | H95: Ladu | I95: dispetser | J95: 990
B96: 34811280456 | C96: Argo | D96: Salu | E96: mees | F96: 1948-11-28 | G96: 64 | H96: Tootmine | I96: tööline | J96: 1160
B97: 37105220288 | C97: Kustav | D97: Salu | E97: mees | F97: 1971-05-22 | G97: 42 | H97: Tootmine | I97: tööline | J97: 1160
B98: 37006180544 | C98: Erno | D98: Salumets | E98: mees | F98: 1970-06-18 | G98: 43 | H98: Müük | I98: juhataja | J98: 3650
B99: 44607080463 | C99: Evi | D99: Sarapik | E99: naine | F99: 1946-07-08 | G99: 67 | H99: Finants | I99: raamatupidaja | J99: 1270
B100: 44601210234 | C100: Tiina | D100: Toomsalu | E100: naine | F100: 1946-01-21 | G100: 67 | H100: Majandus | I100: koristaja | J100: 650
B101: 45209010485 | C101: Juulia | D101: Tubin | E101: naine | F101: 1952-09-01 | G101: 61 | H101: Müük | I101: sekretär | J101: 860
B102: 35901050084 | C102: Ahti | D102: Tubin | E102: mees | F102: 1959-01-05 | G102: 54 | H102: Tootmine | I102: treial | J102: 1350
B103: 46404170054 | C103: Katy | D103: Veesimaa | E103: naine | F103: 1964-04-17 | G103: =INT((TODAY()-F103)/365.25) -> 49 | H103: Finants | I103: referent | J103: 970
B104: 35312110930 | C104: Kaspar | D104: Veesimaa | E104: mees | F104: 1953-12-11 | G104: =INT((TODAY()-F104)/365.25) -> 59 | H104: Tootmine | I104: tööline | J104: 870
B105: 36504060863 | C105: Arvi | D105: Väljas | E105: mees | F105: 1965-04-06 | G105: =INT((TODAY()-F105)/365.25) -> 48 | H105: Tootmine | I105: tööline | J105: 870

Sheet Filter_AT
B3: - kirjed, kus Sugu on mees, Vanus suurem kui 50 ja Palk väiksem kui 10000
B4: Isikukood | C4: Eesnimi | D4: Perenimi | E4: Sugu | F4: Sünniaeg | G4: Vanus | H4: Osakond | I4: Amet | J4: Palk
B5: 34404190222 | C5: Kaivo | D5: Berk | E5: mees | F5: 1944-04-19 | G5: 63 | H5: Ladu | I5: tööline | J5: 7600
B6: 33904050217 | C6: Olav | D6: Berk | E6: mees | F6: 1939-04-05 | G6: 68 | H6: Tootmine | I6: tööline | J6: 8700
B7: 35105180673 | C7: Eino | D7: Luige | E7: mees | F7: 1951-05-18 | G7: 56 | H7: Tootmine | I7: tööline | J7: 7600
B8: 34506190557 | C8: Reijo | D8: Meigas | E8: mees | F8: 1945-06-19 | G8: 62 | H8: Ladu | I8: tööline | J8: 9600
B9: 35408240148 | C9: Arnold | D9: Merilaid | E9: mees | F9: 1954-08-24 | G9: 53 | H9: Transport | I9: autojuht | J9: 9400
B10: 34204170615 | C10: Aadu | D10: Pulk | E10: mees | F10: 1942-04-17 | G10: 65 | H10: Transport | I10: valvur | J10: 6700
B11: 34810190405 | C11: Karl | D11: Salu | E11: mees | F11: 1948-10-19 | G11: 58 | H11: Ladu | I11: dispetser | J11: 9900
B12: 35312110930 | C12: Kaspar | D12: Veesimaa | E12: mees | F12: 1953-12-11 | G12: 53 | H12: Tootmine | I12: tööline | J12: 8700
B14: kirjed, kus Osakond on ladu või Ost ja Sugu on naine
B15: Isikukood | C15: Eesnimi | D15: Perenimi | E15: Sugu | F15: Sünniaeg | G15: Vanus | H15: Osakond | I15: Amet | J15: Palk
B16: 46605150941 | C16: Maarja | D16: Ambros | E16: naine | F16: 1966-05-15 | G16: 41 | H16: Ost | I16: sekretäär | J16: 8500
B17: 46809210954 | C17: Aigi | D17: Härm | E17: naine | F17: 1968-09-21 | G17: 39 | H17: Ost | I17: sekretär | J17: 10800
B18: 44311130888 | C18: Sirje | D18: Härm | E18: naine | F18: 1943-11-13 | G18: 63 | H18: Ost | I18: sekretär | J18: 8600
B19: 48208230166 | C19: Tiina | D19: Markus | E19: naine | F19: 1982-08-23 | G19: 25 | H19: Ladu | I19: tööline | J19: 7500
B20: 45903030319 | C20: Valve | D20: Mäesalu | E20: naine | F20: 1959-03-03 | G20: 48 | H20: Ost | I20: sekretär | J20: 11200
B21: 46709190988 | C21: Selma | D21: Parre | E21: naine | F21: 1967-09-19 | G21: 40 | H21: Ladu | I21: tööline | J21: 10700
B22: 45710100356 | C22: Airi | D22: Põld | E22: naine | F22: 1957-10-10 | G22: 50 | H22: Ladu | I22: kompekteerija | J22: 11600
B24: Amet | C24: kirjed, kus Amet on juhataja või sekretär
B25: sekretär
B26: juhataja
B28: Isikukood | C28: Eesnimi | D28: Perenimi | E28: Sugu | F28: Sünniaeg | G28: Vanus | H28: Osakond | I28: Amet | J28: Palk
B29: 47302150417 | C29: Mare | D29: Eesmaa | E29: naine | F29: 1973-02-15 | G29: 34 | H29: Majandus | I29: juhataja | J29: 25400
B30: 34107110230 | C30: Hendrik | D30: Kanter | E30: mees | F30: 1941-07-11 | G30: 66 | H30: Tootmine | I30: juhataja | J30: 32700
B31: 46908050804 | C31: Malle | D31: Kivioja | E31: naine | F31: 1969-08-05 | G31: 38 | H31: Finants | I31: juhataja | J31: 36500
B32: 34112180084 | C32: Anton | D32: Meister | E32: mees | F32: 1941-12-18 | G32: 65 | H32: Ladu | I32: juhataja | J32: 22700
B33: 37303030624 | C33: Aarne | D33: Mikson | E33: mees | F33: 1973-03-03 | G33: 34 | H33: Ost | I33: juhataja | J33: 29600
B34: 37006180544 | C34: Erno | D34: Salumets | E34: mees | F34: 1970-06-18 | G34: 37 | H34: Müük | I34: juhataja | J34: 36500
B35: 48704250911 | C35: Helen | D35: Aigro | E35: naine | F35: 1987-04-25 | G35: 20 | H35: Müük | I35: sekretär | J35: 8500
B36: 48305030944 | C36: Laine | D36: Eek | E36: naine | F36: 1983-05-03 | G36: 24 | H36: Majandus | I36: sekretär | J36: 7700
B37: 46809210954 | C37: Aigi | D37: Härm | E37: naine | F37: 1968-09-21 | G37: 39 | H37: Ost | I37: sekretär | J37: 10800
B38: 44311130888 | C38: Sirje | D38: Härm | E38: naine | F38: 1943-11-13 | G38: 63 | H38: Ost | I38: sekretär | J38: 8600
B39: 46809170171 | C39: Jana | D39: Kaal | E39: naine | F39: 1968-09-17 | G39: 39 | H39: Müük | I39: sekretär | J39: 8600
B40: 48801180808 | C40: Erika | D40: Kasemets | E40: naine | F40: 1988-01-18 | G40: 19 | H40: Müük | I40: sekretär | J40: 9800
B41: 48210210529 | C41: Faina | D41: Kukk | E41: naine | F41: 1982-10-21 | G41: 24 | H41: Müük | I41: sekretär | J41: 8700
B42: 45903030319 | C42: Valve | D42: Mäesalu | E42: naine | F42: 1959-03-03 | G42: 48 | H42: Ost | I42: sekretär | J42: 11200
B43: 48105090295 | C43: Annika | D43: Paju | E43: naine | F43: 1981-05-09 | G43: 26 | H43: Majandus | I43: sekretär | J43: 7600
B44: 45902200391 | C44: Evelin | D44: Põld | E44: naine | F44: 1959-02-20 | G44: 48 | H44: Majandus | I44: sekretär | J44: 9600
B45: 47605040659 | C45: Hilja | D45: Raid | E45: naine | F45: 1976-05-04 | G45: 31 | H45: Müük | I45: sekretär | J45: 9600
B46: 45209010485 | C46: Juulia | D46: Tubin | E46: naine | F46: 1952-09-01 | G46: 55 | H46: Müük | I46: sekretär | J46: 8600
B49: Amet | C49: Osakond | D49: kirjed, kus Amet on juhataja või sekretär ja
B50: sekretär | C50: Ost | D50: Osakond on Müük või Ost
B51: sekretär | C51: Müük
B52: juhataja | C52: Ost
B53: juhataja | C53: Müük
B55: Isikukood | C55: Eesnimi | D55: Perenimi | E55: Sugu | F55: Sünniaeg | G55: Vanus | H55: Osakond | I55: Amet | J55: Palk
B56: 48704250911 | C56: Helen | D56: Aigro | E56: naine | F56: 1987-04-25 | G56: 20 | H56: Müük | I56: sekretär | J56: 8500
B57: 46809210954 | C57: Aigi | D57: Härm | E57: naine | F57: 1968-09-21 | G57: 39 | H57: Ost | I57: sekretär | J57: 10800
B58: 44311130888 | C58: Sirje | D58: Härm | E58: naine | F58: 1943-11-13 | G58: 63 | H58: Ost | I58: sekretär | J58: 8600
B59: 46809170171 | C59: Jana | D59: Kaal | E59: naine | F59: 1968-09-17 | G59: 39 | H59: Müük | I59: sekretär | J59: 8600
B60: 48801180808 | C60: Erika | D60: Kasemets | E60: naine | F60: 1988-01-18 | G60: 19 | H60: Müük | I60: sekretär | J60: 9800
B61: 48210210529 | C61: Faina | D61: Kukk | E61: naine | F61: 1982-10-21 | G61: 24 | H61: Müük | I61: sekretär | J61: 8700
B62: 37303030624 | C62: Aarne | D62: Mikson | E62: mees | F62: 1973-03-03 | G62: 34 | H62: Ost | I62: juhataja | J62: 29600
B63: 45903030319 | C63: Valve | D63: Mäesalu | E63: naine | F63: 1959-03-03 | G63: 48 | H63: Ost | I63: sekretär | J63: 11200
B64: 47605040659 | C64: Hilja | D64: Raid | E64: naine | F64: 1976-05-04 | G64: 31 | H64: Müük | I64: sekretär | J64: 9600
B65: 37006180544 | C65: Erno | D65: Salumets | E65: mees | F65: 1970-06-18 | G65: 37 | H65: Müük | I65: juhataja | J65: 36500
B66: 45209010485 | C66: Juulia | D66: Tubin | E66: naine | F66: 1952-09-01 | G66: 55 | H66: Müük | I66: sekretär | J66: 8600
B69: väljad Eesnimi, Perenimi, Amet, Vanus ja Palk kirjetest, kus Amet on müügijuht või jurist
B70: Amet
B71: müügijuht
B72: jurist
B74: Eesnimi | C74: Perenimi | D74: Amet | E74: Vanus | F74: Palk
B75: Erika | C75: Bachmann | D75: müügijuht | E75: 36 | F75: 13500
B76: Ene | C76: Elmik | D76: müügijuht | E76: 35 | F76: 12700
B77: Faina | C77: Lepp | D77: jurist | E77: 37 | F77: 23500
B78: Malle | C78: Ligi | D78: jurist | E78: 51 | F78: 22700
B79: Tarmo | C79: Müller | D79: müügijuht | E79: 40 | F79: 20800
B82: väljad Perenimi, Osakond, Amet, Vanus ja Palk kirjetest, kus Vanus <=50 ja Palk >=15000
B83: Vanus | C83: Palk
B84: <=50 | C84: >=15000
B86: Perenimi | C86: Osakond | D86: Amet | E86: Vanus | F86: Palk
B87: Eesmaa | C87: Majandus | D87: juhataja | E87: 34 | F87: 25400
B88: Kivioja | C88: Finants | D88: juhataja | E88: 38 | F88: 36500
B89: Lepp | C89: Finants | D89: jurist | E89: 37 | F89: 23500
B90: Mikson | C90: Ost | D90: juhataja | E90: 34 | F90: 29600
B91: Müller | C91: Müük | D91: müügijuht | E91: 40 | F91: 20800
B92: Salumets | C92: Müük | D92: juhataja | E92: 37 | F92: 36500

Sheet Rist_T1
B3: Sum of Palk
B4: Osakond | C4: Total
B5: Finants | C5: 152840
B6: Ladu | C6: 105100
B7: Majandus | C7: 70500
B8: Müük | C8: 180100
B9: Ost | C9: 68700
B10: Tootmine | C10: 431950
B11: Transport | C11: 160300
B12: Grand Total | C12: 1169490
B15: Average of Palk | C15: Sugu
B16: Amet | C16: mees | D16: naine | E16: Grand Total
B17: autojuht | C17: 11263.63636 | E17: 11263.63636
B18: diiler | C18: 10700 | E18: 10700
B19: dispetser | C19: 9900 | D19: 9900 | E19: 9900
B20: juhataja | C20: 30375 | D20: 30950 | E20: 30566.66667
B21: jurist | D21: 23100 | E21: 23100
B22: kompekteerija | C22: 10300 | D22: 11600 | E22: 10950
B23: koristaja | D23: 6733.333333 | E23: 6733.333333
B24: lukksepp | C24: 11460 | E24: 11460
B25: meister | C25: 13926.66667 | E25: 13926.66667
B26: müügijuht | C26: 20800 | D26: 13100 | E26: 15666.66667
B27: raamatupidaja | C27: 12700 | D27: 11935 | E27: 12088
B28: referent | D28: 9700 | E28: 9700
B29: sekretär | D29: 9108.333333 | E29: 9108.333333
B30: sekretäär | D30: 8500 | E30: 8500
B31: treial | C31: 11767.5 | E31: 11767.5
B32: tööline | C32: 9691.304348 | D32: 8977.777778 | E32: 9490.625
B33: valvur | C33: 6700 | E33: 6700
B34: Grand Total | C34: 12163.55932 | D34: 11296 | E34: 11813.0303
B37: Osakond | C37: (All)
B39: Average of Palk | C39: Sugu
B40: Vanus | C40: mees | D40: naine | E40: Grand Total
B41: 15-24 | C41: 9320 | D41: 8675 | E41: 9033.333333
B42: 25-34 | C42: 12261.53846 | D42: 11125 | E42: 11828.57143
B43: 35-44 | C43: 14100 | D43: 13050 | E43: 13555.55556
B44: 45-54 | C44: 10877.77778 | D44: 12873.33333 | E44: 11676
B45: 55-64 | C45: 10441.66667 | D45: 8980 | E45: 10011.76471
B46: 65-74 | C46: 15021.42857 | D46: 7766.666667 | E46: 12845
B47: Grand Total | C47: 12163.55932 | D47: 11296 | E47: 11813.0303

Sheet P_Müügid
B2: Puidu müük | D2: AS Karu & Pojad | H2: =YEAR(C9) -> 2007 | K2: P-abi
B4: sortimine | C4: autofilter | D4: arend. filter | E4: vahe | F4: risttabel | G4: SumIF
G6: Kokku | I6: =SUM(P_kogus) -> 17099 | K6: =SUM(P_maks) -> 11201965
B8: P_arve | C8: P_kuupäev | D8: P_ostja | E8: P_maa | F8: P_liik | G8: P_sort | H8: P_müüja | I8: P_kogus | J8: P_hind | K8: P_maks | L8: P_kuu
B9: P001 | C9: 2007-01-02 | D9: Seen | E9: =VLOOKUP(P_ostja, o_tab, 2, 0) -> Võru | F9: mänd | G9: 2 | H9: Siil | I9: 28 | J9: =VLOOKUP(P_liik, P_hinnad, P_sort+1, 0) -> 675 | K9: =P_hind * P_kogus -> 18900 | L9: =MONTH(P_kuupäev) -> 1
B10: P002 | C10: 2007-01-03 | D10: Haab | E10: Pärnu | F10: kask | G10: 1 | H10: Karu | I10: 75 | J10: 700 | K10: 52500 | L10: 1
B11: P002 | C11: 2007-01-03 | D11: Haab | E11: Pärnu | F11: vaher | G11: 1 | H11: Karu | I11: 10 | J11: 950 | K11: 9500 | L11: 1
B12: P003 | C12: 2007-01-03 | D12: Seen | E12: Võru | F12: lepp | G12: 2 | H12: Karu | I12: 13 | J12: 585 | K12: 7605 | L12: 1
B13: P004 | C13: 2007-01-04 | D13: Karu | E13: Lääne | F13: küte | G13: 1 | H13: Siil | I13: 12 | J13: 470 | K13: 5640 | L13: 1
B14: P004 | C14: 2007-01-04 | D14: Karu | E14: Lääne | F14: vaher | G14: 1 | H14: Siil | I14: 39 | J14: 950 | K14: 37050 | L14: 1
B15: P005 | C15: 2007-01-06 | D15: Seen | E15: Võru | F15: küte | G15: 1 | H15: Põder | I15: 44 | J15: 470 | K15: 20680 | L15: 1
B16: P006 | C16: 2007-01-06 | D16: Juur | E16: Pärnu | F16: mänd | G16: 2 | H16: Rebane | I16: 37 | J16: 675 | K16: 24975 | L16: 1
B17: P007 | C17: 2007-01-07 | D17: Lind | E17: Valga | F17: kuusk | G17: 2 | H17: Jänes | I17: 11 | J17: 720 | K17: 7920 | L17: 1
B18: P008 | C18: 2007-01-07 | D18: Vaher | E18: Rapla | F18: saar | G18: 3 | H18: Hunt | I18: 23 | J18: 680 | K18: 15640 | L18: 1
B19: P009 | C19: 2007-01-08 | D19: Mänd | E19: Harju | F19: küte | G19: 1 | H19: Jänes | I19: 45 | J19: 470 | K19: 21150 | L19: 1
B20: P010 | C20: 2007-01-09 | D20: Karu | E20: Lääne | F20: küte | G20: 2 | H20: Hunt | I20: 6 | J20: 423 | K20: 2538 | L20: 1
B21: P010 | C21: 2007-01-09 | D21: Karu | E21: Lääne | F21: mänd | G21: 1 | H21: Hunt | I21: 55 | J21: 750 | K21: 41250 | L21: 1
B22: P010 | C22: 2007-01-09 | D22: Karu | E22: Lääne | F22: mänd | G22: 2 | H22: Hunt | I22: 39 | J22: 675 | K22: 26325 | L22: 1
B23: P011 | C23: 2007-01-11 | D23: Lepp | E23: Viljandi | F23: kuusk | G23: 1 | H23: Karu | I23: 24 | J23: 800 | K23: 19200 | L23: 1
B24: P011 | C24: 2007-01-11 | D24: Lepp | E24: Viljandi | F24: vaher | G24: 3 | H24: Jänes | I24: 16 | J24: 760 | K24: 12160 | L24: 1
B25: P012 | C25: 2007-01-12 | D25: Lepik | E25: Paide | F25: küte | G25: 1 | H25: Jänes | I25: 71 | J25: 470 | K25: 33370 | L25: 1
B26: P013 | C26: 2007-01-13 | D26: Vares | E26: Rapla | F26: küte | G26: 2 | H26: Jänes | I26: 25 | J26: 423 | K26: 10575 | L26: 1
B27: P013 | C27: 2007-01-13 | D27: Vares | E27: Rapla | F27: küte | G27: 1 | H27: Jänes | I27: 22 | J27: 470 | K27: 10340 | L27: 1
B28: P013 | C28: 2007-01-13 | D28: Vares | E28: Rapla | F28: tamm | G28: 1 | H28: Jänes | I28: 28 | J28: 1100 | K28: 30800 | L28: 1
B29: P014 | C29: 2007-01-14 | D29: Kask | E29: Pärnu | F29: mänd | G29: 1 | H29: Siil | I29: 40 | J29: 750 | K29: 30000 | L29: 1
B30: P014 | C30: 2007-01-14 | D30: Kask | E30: Pärnu | F30: saar | G30: 1 | H30: Siil | I30: 17 | J30: 850 | K30: 14450 | L30: 1
B31: P015 | C31: 2007-01-16 | D31: Varblane | E31: Harju | F31: haab | G31: 3 | H31: Hunt | I31: 17 | J31: 400 | K31: 6800 | L31: 1
B32: P015 | C32: 2007-01-16 | D32: Varblane | E32: Harju | F32: saar | G32: 1 | H32: Hunt | I32: 40 | J32: 850 | K32: 34000 | L32: 1
B33: P015 | C33: 2007-01-16 | D33: Varblane | E33: Harju | F33: vaher | G33: 1 | H33: Hunt | I33: 27 | J33: 950 | K33: 25650 | L33: 1
B34: P016 | C34: 2007-01-17 | D34: Ilves | E34: Lääne | F34: kask | G34: 1 | H34: Hunt | I34: 13 | J34: 700 | K34: 9100 | L34: 1
B35: P016 | C35: 2007-01-17 | D35: Ilves | E35: Lääne | F35: tamm | G35: 2 | H35: Hunt | I35: 31 | J35: 990 | K35: 30690 | L35: 1
B36: P017 | C36: 2007-01-18 | D36: Paju | E36: Võru | F36: kask | G36: 1 | H36: Põder | I36: 50 | J36: 700 | K36: 35000 | L36: 1
B37: P018 | C37: 2007-01-19 | D37: Pihel | E37: Rapla | F37: kuusk | G37: 3 | H37: Siil | I37: 52 | J37: 640 | K37: 33280 | L37: 1
B38: P019 | C38: 2007-01-20 | D38: Seen | E38: Võru | F38: saar | G38: 1 | H38: Hunt | I38: 69 | J38: 850 | K38: 58650 | L38: 1
B39: P020 | C39: 2007-01-23 | D39: Kaun | E39: Pärnu | F39: küte | G39: 1 | H39: Põder | I39: 48 | J39: 470 | K39: 22560 | L39: 1
B40: P021 | C40: 2007-01-24 | D40: Seen | E40: Võru | F40: küte | G40: 2 | H40: Jänes | I40: 45 | J40: 423 | K40: 19035 | L40: 1
B41: P021 | C41: 2007-01-24 | D41: Seen | E41: Võru | F41: mänd | G41: 1 | H41: Jänes | I41: 73 | J41: 750 | K41: 54750 | L41: 1
B42: P022 | C42: 2007-01-25 | D42: Kuusik | E42: Viljandi | F42: kask | G42: 1 | H42: Karu | I42: 23 | J42: 700 | K42: 16100 | L42: 1
B43: P022 | C43: 2007-01-25 | D43: Kuusik | E43: Viljandi | F43: kask | G43: 1 | H43: Karu | I43: 16 | J43: 700 | K43: 11200 | L43: 1
B44: P022 | C44: 2007-01-25 | D44: Kuusik | E44: Viljandi | F44: küte | G44: 2 | H44: Karu | I44: 20 | J44: 423 | K44: 8460 | L44: 1
B45: P023 | C45: 2007-01-25 | D45: Kuusik | E45: Viljandi | F45: kuusk | G45: 1 | H45: Jänes | I45: 24 | J45: 800 | K45: 19200 | L45: 1
B46: P024 | C46: 2007-01-27 | D46: Lepp | E46: Viljandi | F46: tamm | G46: 2 | H46: Karu | I46: 51 | J46: 990 | K46: 50490 | L46: 1
B47: P025 | C47: 2007-01-27 | D47: Lepp | E47: Viljandi | F47: kuusk | G47: 1 | H47: Siil | I47: 15 | J47: 800 | K47: 12000 | L47: 1
B48: P026 | C48: 2007-01-28 | D48: Känd | E48: Harju | F48: tamm | G48: 2 | H48: Siil | I48: 11 | J48: 990 | K48: 10890 | L48: 1
B49: P027 | C49: 2007-01-30 | D49: Tuvi | E49: Harju | F49: küte | G49: 1 | H49: Siil | I49: 27 | J49: 470 | K49: 12690 | L49: 1
B50: P028 | C50: 2007-01-31 | D50: Kask | E50: Pärnu | F50: haab | G50: 2 | H50: Ilves | I50: 46 | J50: 450 | K50: 20700 | L50: 1
B51: P028 | C51: 2007-01-31 | D51: Kask | E51: Pärnu | F51: kuusk | G51: 1 | H51: Ilves | I51: 40 | J51: 800 | K51: 32000 | L51: 1
B52: P029 | C52: 2007-02-01 | D52: Lind | E52: Valga | F52: kask | G52: 3 | H52: Karu | I52: 75 | J52: 560 | K52: 42000 | L52: 2
B53: P030 | C53: 2007-02-01 | D53: Lind | E53: Valga | F53: haab | G53: 2 | H53: Põder | I53: 44 | J53: 450 | K53: 19800 | L53: 2
B54: P031 | C54: 2007-02-02 | D54: Karu | E54: Lääne | F54: mänd | G54: 1 | H54: Jänes | I54: 53 | J54: 750 | K54: 39750 | L54: 2
B55: P032 | C55: 2007-02-03 | D55: Ilves | E55: Lääne | F55: vaher | G55: 2 | H55: Karu | I55: 26 | J55: 855 | K55: 22230 | L55: 2
B56: P033 | C56: 2007-02-04 | D56: Vaher | E56: Rapla | F56: kuusk | G56: 3 | H56: Karu | I56: 66 | J56: 640 | K56: 42240 | L56: 2
B57: P034 | C57: 2007-02-05 | D57: Lepik | E57: Paide | F57: mänd | G57: 1 | H57: Siil | I57: 30 | J57: 750 | K57: 22500 | L57: 2
B58: P034 | C58: 2007-02-05 | D58: Lepik | E58: Paide | F58: tamm | G58: 1 | H58: Siil | I58: 15 | J58: 1100 | K58: 16500 | L58: 2
B59: P035 | C59: 2007-02-12 | D59: Kask | E59: Pärnu | F59: lepp | G59: 1 | H59: Karu | I59: 53 | J59: 650 | K59: 34450 | L59: 2
B60: P036 | C60: 2007-02-13 | D60: Luik | E60: Viljandi | F60: kuusk | G60: 3 | H60: Karu | I60: 72 | J60: 640 | K60: 46080 | L60: 2
B61: P036 | C61: 2007-02-13 | D61: Luik | E61: Viljandi | F61: lepp | G61: 1 | H61: Ilves | I61: 53 | J61: 650 | K61: 34450 | L61: 2
B62: P037 | C62: 2007-02-17 | D62: Kuusik | E62: Viljandi | F62: haab | G62: 2 | H62: Jänes | I62: 32 | J62: 450 | K62: 14400 | L62: 2
B63: P038 | C63: 2007-02-18 | D63: Kask | E63: Pärnu | F63: mänd | G63: 1 | H63: Ilves | I63: 36 | J63: 750 | K63: 27000 | L63: 2
B64: P038 | C64: 2007-02-18 | D64: Kask | E64: Pärnu | F64: tamm | G64: 1 | H64: Ilves | I64: 14 | J64: 1100 | K64: 15400 | L64: 2
B65: P038 | C65: 2007-02-18 | D65: Kask | E65: Pärnu | F65: vaher | G65: 3 | H65: Ilves | I65: 78 | J65: 760 | K65: 59280 | L65: 2
B66: P039 | C66: 2007-02-18 | D66: Lepik | E66: Paide | F66: kask | G66: 3 | H66: Hunt | I66: 62 | J66: 560 | K66: 34720 | L66: 2
B67: P040 | C67: 2007-02-19 | D67: Saar | E67: Valga | F67: kuusk | G67: 1 | H67: Jänes | I67: 22 | J67: 800 | K67: 17600 | L67: 2
B68: P041 | C68: 2007-02-20 | D68: Mänd | E68: Harju | F68: mänd | G68: 1 | H68: Siil | I68: 74 | J68: 750 | K68: 55500 | L68: 2
B69: P042 | C69: 2007-02-21 | D69: Mänd | E69: Harju | F69: haab | G69: 3 | H69: Põder | I69: 26 | J69: 400 | K69: 10400 | L69: 2
B70: P042 | C70: 2007-02-21 | D70: Mänd | E70: Harju | F70: saar | G70: 1 | H70: Põder | I70: 49 | J70: 850 | K70: 41650 | L70: 2
B71: P043 | C71: 2007-02-22 | D71: Seen | E71: Võru | F71: saar | G71: 2 | H71: Hunt | I71: 24 | J71: 765 | K71: 18360 | L71: 2
B72: P044 | C72: 2007-02-25 | D72: Juur | E72: Pärnu | F72: kask | G72: 1 | H72: Hunt | I72: 37 | J72: 700 | K72: 25900 | L72: 2
B73: P044 | C73: 2007-02-25 | D73: Juur | E73: =VLOOKUP(P_ostja, o_tab, 2, 0) -> Pärnu | F73: mänd | G73: 3 | H73: Hunt | I73: 33 | J73: =VLOOKUP(P_liik, P_hinnad, P_sort+1, 0) -> 600 | K73: =P_hind * P_kogus -> 19800 | L73: =MONTH(P_kuupäev) -> 2
B74: P045 | C74: 2007-02-26 | D74: Vaher | E74: Rapla | F74: kask | G74: 1 | H74: Hunt | I74: 35 | J74: 700 | K74: 24500 | L74: 2
B75: P046 | C75: 2007-02-27 | D75: Varblane | E75: Harju | F75: kask | G75: 1 | H75: Rebane | I75: 34 | J75: 700 | K75: 23800 | L75: 2
B76: P047 | C76: 2007-02-27 | D76: Kuusik | E76: Viljandi | F76: küte | G76: 2 | H76: Hunt | I76: 28 | J76: 423 | K76: 11844 | L76: 2
B77: P048 | C77: 2007-02-28 | D77: Seen | E77: Võru | F77: lepp | G77: 3 | H77: Siil | I77: 23 | J77: 520 | K77: 11960 | L77: 2
B78: P049 | C78: 2007-03-01 | D78: Varblane | E78: Harju | F78: kask | G78: 1 | H78: Siil | I78: 73 | J78: 700 | K78: 51100 | L78: 3
B79: P050 | C79: 2007-03-01 | D79: Kaun | E79: Pärnu | F79: lepp | G79: 1 | H79: Ilves | I79: 65 | J79: 650 | K79: 42250 | L79: 3
B80: P051 | C80: 2007-03-02 | D80: Lepik | E80: Paide | F80: saar | G80: 3 | H80: Karu | I80: 63 | J80: 680 | K80: 42840 | L80: 3
B81: P052 | C81: 2007-03-02 | D81: Lepik | E81: Paide | F81: lepp | G81: 3 | H81: Ilves | I81: 65 | J81: 520 | K81: 33800 | L81: 3
B82: P053 | C82: 2007-03-02 | D82: Lepp | E82: Viljandi | F82: haab | G82: 1 | H82: Karu | I82: 27 | J82: 500 | K82: 13500 | L82: 3
B83: P053 | C83: 2007-03-02 | D83: Lepp | E83: Viljandi | F83: vaher | G83: 1 | H83: Hunt | I83: 11 | J83: 950 | K83: 10450 | L83: 3
B84: P054 | C84: 2007-03-05 | D84: Lepp | E84: Viljandi | F84: küte | G84: 2 | H84: Karu | I84: 177 | J84: 423 | K84: 74871 | L84: 3
B85: P054 | C85: 2007-03-05 | D85: Lepp | E85: Viljandi | F85: lepp | G85: 2 | H85: Karu | I85: 37 | J85: 585 | K85: 21645 | L85: 3
B86: P055 | C86: 2007-03-06 | D86: Saar | E86: Valga | F86: mänd | G86: 2 | H86: Jänes | I86: 49 | J86: 675 | K86: 33075 | L86: 3
B87: P056 | C87: 2007-03-08 | D87: Saar | E87: Valga | F87: mänd | G87: 3 | H87: Rebane | I87: 28 | J87: 600 | K87: 16800 | L87: 3
B88: P057 | C88: 2007-03-08 | D88: Ilves | E88: Lääne | F88: haab | G88: 1 | H88: Siil | I88: 13 | J88: 500 | K88: 6500 | L88: 3
B89: P057 | C89: 2007-03-08 | D89: Ilves | E89: Lääne | F89: mänd | G89: 2 | H89: Siil | I89: 22 | J89: 675 | K89: 14850 | L89: 3
B90: P058 | C90: 2007-03-11 | D90: Vaher | E90: Rapla | F90: haab | G90: 1 | H90: Hunt | I90: 59 | J90: 500 | K90: 29500 | L90: 3
B91: P058 | C91: 2007-03-11 | D91: Vaher | E91: Rapla | F91: kask | G91: 1 | H91: Hunt | I91: 25 | J91: 700 | K91: 17500 | L91: 3
B92: P058 | C92: 2007-03-11 | D92: Vaher | E92: Rapla | F92: kask | G92: 1 | H92: Hunt | I92: 11 | J92: 700 | K92: 7700 | L92: 3
B93: P059 | C93: 2007-03-12 | D93: Varblane | E93: Harju | F93: haab | G93: 2 | H93: Põder | I93: 75 | J93: 450 | K93: 33750 | L93: 3
B94: P060 | C94: 2007-03-13 | D94: Varblane | E94: Harju | F94: lepp | G94: 2 | H94: Karu | I94: 46 | J94: 585 | K94: 26910 | L94: 3
B95: P061 | C95: 2007-03-15 | D95: Lepp | E95: Viljandi | F95: kuusk | G95: 3 | H95: Siil | I95: 23 | J95: 640 | K95: 14720 | L95: 3
B96: P062 | C96: 2007-03-18 | D96: Varblane | E96: Harju | F96: haab | G96: 2 | H96: Jänes | I96: 49 | J96: 450 | K96: 22050 | L96: 3
B97: P062 | C97: 2007-03-18 | D97: Varblane | E97: Harju | F97: haab | G97: 1 | H97: Jänes | I97: 36 | J97: 500 | K97: 18000 | L97: 3
B98: P062 | C98: 2007-03-18 | D98: Varblane | E98: Harju | F98: vaher | G98: 1 | H98: Jänes | I98: 27 | J98: 950 | K98: 25650 | L98: 3
B99: P063 | C99: 2007-03-19 | D99: Seen | E99: Võru | F99: kask | G99: 1 | H99: Siil | I99: 73 | J99: 700 | K99: 51100 | L99: 3
B100: P063 | C100: 2007-03-19 | D100: Seen | E100: Võru | F100: mänd | G100: 2 | H100: Siil | I100: 52 | J100: 675 | K100: 35100 | L100: 3
B101: P064 | C101: 2007-03-20 | D101: Juur | E101: Pärnu | F101: tamm | G101: 1 | H101: Rebane | I101: 35 | J101: 1100 | K101: 38500 | L101: 3
B102: P064 | C102: 2007-03-20 | D102: Juur | E102: Pärnu | F102: vaher | G102: 2 | H102: Rebane | I102: 31 | J102: 855 | K102: 26505 | L102: 3
B103: P065 | C103: 2007-03-21 | D103: Lind | E103: Valga | F103: saar | G103: 3 | H103: Karu | I103: 18 | J103: 680 | K103: 12240 | L103: 3
B104: P066 | C104: 2007-03-22 | D104: Tuvi | E104: Harju | F104: saar | G104: 1 | H104: Karu | I104: 67 | J104: 850 | K104: 56950 | L104: 3
B105: P066 | C105: 2007-03-22 | D105: Tuvi | E105: Harju | F105: saar | G105: 1 | H105: Karu | I105: 52 | J105: 850 | K105: 44200 | L105: 3
B106: P067 | C106: 2007-03-23 | D106: Lind | E106: Valga | F106: kuusk | G106: 1 | H106: Karu | I106: 11 | J106: 800 | K106: 8800 | L106: 3
B107: P068 | C107: 2007-03-23 | D107: Kask | E107: Pärnu | F107: kask | G107: 1 | H107: Ilves | I107: 32 | J107: 700 | K107: 22400 | L107: 3
B108: P069 | C108: 2007-03-24 | D108: Kass | E108: Paide | F108: tamm | G108: 2 | H108: Jänes | I108: 23 | J108: 990 | K108: 22770 | L108: 3
B109: P070 | C109: 2007-03-25 | D109: Känd | E109: Harju | F109: kuusk | G109: 1 | H109: Ilves | I109: 72 | J109: 800 | K109: 57600 | L109: 3
B110: P070 | C110: 2007-03-25 | D110: Känd | E110: Harju | F110: kuusk | G110: 2 | H110: Ilves | I110: 58 | J110: 720 | K110: 41760 | L110: 3
B111: P071 | C111: 2007-03-26 | D111: Vares | E111: Rapla | F111: lepp | G111: 2 | H111: Siil | I111: 52 | J111: 585 | K111: 30420 | L111: 3
B112: P072 | C112: 2007-03-26 | D112: Lepp | E112: Viljandi | F112: saar | G112: 1 | H112: Ilves | I112: 8 | J112: 850 | K112: 6800 | L112: 3
B113: P073 | C113: 2007-03-31 | D113: Kaun | E113: Pärnu | F113: haab | G113: 1 | H113: Hunt | I113: 27 | J113: 500 | K113: 13500 | L113: 3
B114: P073 | C114: 2007-03-31 | D114: Kaun | E114: Pärnu | F114: kuusk | G114: 1 | H114: Hunt | I114: 21 | J114: 800 | K114: 16800 | L114: 3
B115: P074 | C115: 2007-04-01 | D115: Saar | E115: Valga | F115: saar | G115: 1 | H115: Põder | I115: 13 | J115: 850 | K115: 11050 | L115: 4
B116: P075 | C116: 2007-04-02 | D116: Lepp | E116: Viljandi | F116: kask | G116: 2 | H116: Ilves | I116: 22 | J116: 630 | K116: 13860 | L116: 4
B117: P075 | C117: 2007-04-02 | D117: Lepp | E117: Viljandi | F117: saar | G117: 1 | H117: Ilves | I117: 35 | J117: 850 | K117: 29750 | L117: 4
B118: P076 | C118: 2007-04-02 | D118: Kask | E118: Pärnu | F118: kuusk | G118: 2 | H118: Siil | I118: 14 | J118: 720 | K118: 10080 | L118: 4
B119: P077 | C119: 2007-04-03 | D119: Kaasik | E119: Pärnu | F119: kask | G119: 1 | H119: Põder | I119: 39 | J119: 700 | K119: 27300 | L119: 4
B120: P078 | C120: 2007-04-04 | D120: Lind | E120: Valga | F120: haab | G120: 1 | H120: Ilves | I120: 54 | J120: 500 | K120: 27000 | L120: 4
B121: P078 | C121: 2007-04-04 | D121: Lind | E121: Valga | F121: mänd | G121: 1 | H121: Hunt | I121: 8 | J121: 750 | K121: 6000 | L121: 4
B122: P079 | C122: 2007-04-05 | D122: Juur | E122: Pärnu | F122: haab | G122: 1 | H122: Ilves | I122: 15 | J122: 500 | K122: 7500 | L122: 4
B123: P080 | C123: 2007-04-06 | D123: Haab | E123: Pärnu | F123: mänd | G123: 3 | H123: Ilves | I123: 34 | J123: 600 | K123: 20400 | L123: 4
B124: P081 | C124: 2007-04-08 | D124: Kaasik | E124: Pärnu | F124: tamm | G124: 2 | H124: Hunt | I124: 50 | J124: 990 | K124: 49500 | L124: 4
B125: P082 | C125: 2007-04-09 | D125: Juur | E125: Pärnu | F125: haab | G125: 1 | H125: Siil | I125: 35 | J125: 500 | K125: 17500 | L125: 4
B126: P083 | C126: 2007-04-10 | D126: Varblane | E126: Harju | F126: haab | G126: 1 | H126: Rebane | I126: 30 | J126: 500 | K126: 15000 | L126: 4
B127: P083 | C127: 2007-04-10 | D127: Varblane | E127: Harju | F127: saar | G127: 1 | H127: Rebane | I127: 36 | J127: 850 | K127: 30600 | L127: 4
B128: P084 | C128: 2007-04-11 | D128: Vares | E128: Rapla | F128: tamm | G128: 1 | H128: Hunt | I128: 20 | J128: 1100 | K128: 22000 | L128: 4
B129: P085 | C129: 2007-04-14 | D129: Lepik | E129: Paide | F129: haab | G129: 2 | H129: Karu | I129: 75 | J129: 450 | K129: 33750 | L129: 4
B130: P085 | C130: 2007-04-14 | D130: Lepik | E130: Paide | F130: vaher | G130: 1 | H130: Karu | I130: 13 | J130: 950 | K130: 12350 | L130: 4
B131: P086 | C131: 2007-04-14 | D131: Seen | E131: Võru | F131: küte | G131: 2 | H131: Ilves | I131: 68 | J131: 423 | K131: 28764 | L131: 4
B132: P087 | C132: 2007-04-15 | D132: Varblane | E132: Harju | F132: mänd | G132: 1 | H132: Hunt | I132: 69 | J132: 750 | K132: 51750 | L132: 4
B133: P088 | C133: 2007-04-16 | D133: Känd | E133: Harju | F133: lepp | G133: 1 | H133: Põder | I133: 40 | J133: 650 | K133: 26000 | L133: 4
B134: P088 | C134: 2007-04-16 | D134: Känd | E134: Harju | F134: mänd | G134: 2 | H134: Põder | I134: 61 | J134: 675 | K134: 41175 | L134: 4
B135: P089 | C135: 2007-04-16 | D135: Mänd | E135: Harju | F135: lepp | G135: 2 | H135: Põder | I135: 25 | J135: 585 | K135: 14625 | L135: 4
B136: P090 | C136: 2007-04-17 | D136: Kuusk | E136: Lääne | F136: saar | G136: 3 | H136: Rebane | I136: 41 | J136: 680 | K136: 27880 | L136: 4
B137: P091 | C137: 2007-04-18 | D137: Kaun | E137: =VLOOKUP(P_ostja, o_tab, 2, 0) -> Pärnu | F137: haab | G137: 1 | H137: Ilves | I137: 72 | J137: =VLOOKUP(P_liik, P_hinnad, P_sort+1, 0) -> 500 | K137: =P_hind * P_kogus -> 36000 | L137: =MONTH(P_kuupäev) -> 4
B138: P092 | C138: 2007-04-19 | D138: Kuusk | E138: Lääne | F138: kask | G138: 1 | H138: Jänes | I138: 51 | J138: 700 | K138: 35700 | L138: 4
B139: P092 | C139: 2007-04-19 | D139: Kuusk | E139: Lääne | F139: lepp | G139: 2 | H139: Jänes | I139: 52 | J139: 585 | K139: 30420 | L139: 4
B140: P093 | C140: 2007-04-20 | D140: Kaun | E140: Pärnu | F140: mänd | G140: 3 | H140: Jänes | I140: 71 | J140: 600 | K140: 42600 | L140: 4
B141: P094 | C141: 2007-04-20 | D141: Tuvi | E141: Harju | F141: lepp | G141: 1 | H141: Hunt | I141: 30 | J141: 650 | K141: 19500 | L141: 4
B142: P094 | C142: 2007-04-20 | D142: Tuvi | E142: Harju | F142: mänd | G142: 2 | H142: Hunt | I142: 53 | J142: 675 | K142: 35775 | L142: 4
B143: P095 | C143: 2007-04-21 | D143: Haab | E143: Pärnu | F143: haab | G143: 1 | H143: Karu | I143: 41 | J143: 500 | K143: 20500 | L143: 4
B144: P095 | C144: 2007-04-21 | D144: Haab | E144: Pärnu | F144: kuusk | G144: 1 | H144: Karu | I144: 62 | J144: 800 | K144: 49600 | L144: 4
B145: P095 | C145: 2007-04-21 | D145: Haab | E145: Pärnu | F145: mänd | G145: 2 | H145: Karu | I145: 21 | J145: 675 | K145: 14175 | L145: 4
B146: P096 | C146: 2007-04-23 | D146: Lind | E146: Valga | F146: kuusk | G146: 3 | H146: Ilves | I146: 45 | J146: 640 | K146: 28800 | L146: 4
B147: P096 | C147: 2007-04-23 | D147: Lind | E147: Valga | F147: tamm | G147: 1 | H147: Jänes | I147: 37 | J147: 1100 | K147: 40700 | L147: 4
B148: P097 | C148: 2007-04-24 | D148: Känd | E148: Harju | F148: kuusk | G148: 1 | H148: Ilves | I148: 29 | J148: 800 | K148: 23200 | L148: 4
B149: P097 | C149: 2007-04-24 | D149: Känd | E149: Harju | F149: küte | G149: 3 | H149: Ilves | I149: 63 | J149: 376 | K149: 23688 | L149: 4
B150: P097 | C150: 2007-04-24 | D150: Känd | E150: Harju | F150: tamm | G150: 1 | H150: Ilves | I150: 43 | J150: 1100 | K150: 47300 | L150: 4
B151: P098 | C151: 2007-04-25 | D151: Karu | E151: Lääne | F151: lepp | G151: 2 | H151: Siil | I151: 65 | J151: 585 | K151: 38025 | L151: 4
B152: P099 | C152: 2007-04-25 | D152: Kuusik | E152: Viljandi | F152: kask | G152: 1 | H152: Hunt | I152: 31 | J152: 700 | K152: 21700 | L152: 4
B153: P099 | C153: 2007-04-25 | D153: Kuusik | E153: Viljandi | F153: lepp | G153: 1 | H153: Hunt | I153: 36 | J153: 650 | K153: 23400 | L153: 4
B154: P100 | C154: 2007-04-26 | D154: Kaasik | E154: Pärnu | F154: mänd | G154: 2 | H154: Ilves | I154: 70 | J154: 675 | K154: 47250 | L154: 4
B155: P101 | C155: 2007-04-27 | D155: Saar | E155: Valga | F155: kask | G155: 1 | H155: Hunt | I155: 15 | J155: 700 | K155: 10500 | L155: 4
B156: P101 | C156: 2007-04-27 | D156: Saar | E156: Valga | F156: vaher | G156: 3 | H156: Hunt | I156: 24 | J156: 760 | K156: 18240 | L156: 4
B157: P102 | C157: 2007-04-28 | D157: Varblane | E157: Harju | F157: saar | G157: 2 | H157: Põder | I157: 48 | J157: 765 | K157: 36720 | L157: 4
B158: P103 | C158: 2007-04-29 | D158: Lind | E158: Valga | F158: mänd | G158: 1 | H158: Hunt | I158: 37 | J158: 750 | K158: 27750 | L158: 4
B159: P103 | C159: 2007-04-29 | D159: Lind | E159: Valga | F159: mänd | G159: 2 | H159: Hunt | I159: 33 | J159: 675 | K159: 22275 | L159: 4
B160: P104 | C160: 2007-04-30 | D160: Varblane | E160: Harju | F160: kuusk | G160: 2 | H160: Ilves | I160: 54 | J160: 720 | K160: 38880 | L160: 4
B161: P104 | C161: 2007-04-30 | D161: Varblane | E161: Harju | F161: mänd | G161: 1 | H161: Ilves | I161: 25 | J161: 750 | K161: 18750 | L161: 4
B162: P105 | C162: 2007-05-02 | D162: Seen | E162: Võru | F162: kuusk | G162: 1 | H162: Ilves | I162: 36 | J162: 800 | K162: 28800 | L162: 5
B163: P106 | C163: 2007-05-03 | D163: Lepp | E163: Viljandi | F163: haab | G163: 3 | H163: Ilves | I163: 45 | J163: 400 | K163: 18000 | L163: 5
B164: P106 | C164: 2007-05-03 | D164: Lepp | E164: Viljandi | F164: küte | G164: 2 | H164: Ilves | I164: 31 | J164: 423 | K164: 13113 | L164: 5
B165: P107 | C165: 2007-05-03 | D165: Lepp | E165: Viljandi | F165: mänd | G165: 3 | H165: Rebane | I165: 17 | J165: 600 | K165: 10200 | L165: 5
B166: P108 | C166: 2007-05-04 | D166: Saar | E166: Valga | F166: saar | G166: 2 | H166: Ilves | I166: 37 | J166: 765 | K166: 28305 | L166: 5
B167: P109 | C167: 2007-05-04 | D167: Pihel | E167: Rapla | F167: kuusk | G167: 1 | H167: Karu | I167: 12 | J167: 800 | K167: 9600 | L167: 5
B168: P110 | C168: 2007-05-06 | D168: Kuusk | E168: Lääne | F168: küte | G168: 1 | H168: Rebane | I168: 12 | J168: 470 | K168: 5640 | L168: 5
B169: P111 | C169: 2007-05-08 | D169: Vares | E169: Rapla | F169: tamm | G169: 3 | H169: Jänes | I169: 40 | J169: 880 | K169: 35200 | L169: 5
B170: P112 | C170: 2007-05-09 | D170: Haab | E170: Pärnu | F170: küte | G170: 1 | H170: Karu | I170: 18 | J170: 470 | K170: 8460 | L170: 5
B171: P112 | C171: 2007-05-09 | D171: Haab | E171: Pärnu | F171: saar | G171: 2 | H171: Karu | I171: 10 | J171: 765 | K171: 7650 | L171: 5
B172: P113 | C172: 2007-05-10 | D172: Lind | E172: Valga | F172: küte | G172: 1 | H172: Jänes | I172: 49 | J172: 470 | K172: 23030 | L172: 5
B173: P113 | C173: 2007-05-10 | D173: Lind | E173: Valga | F173: mänd | G173: 1 | H173: Jänes | I173: 54 | J173: 750 | K173: 40500 | L173: 5
B174: P114 | C174: 2007-05-10 | D174: Kaun | E174: Pärnu | F174: haab | G174: 2 | H174: Põder | I174: 25 | J174: 450 | K174: 11250 | L174: 5
B175: P114 | C175: 2007-05-10 | D175: Kaun | E175: Pärnu | F175: saar | G175: 3 | H175: Põder | I175: 19 | J175: 680 | K175: 12920 | L175: 5
B176: P115 | C176: 2007-05-11 | D176: Juur | E176: Pärnu | F176: küte | G176: 1 | H176: Ilves | I176: 71 | J176: 470 | K176: 33370 | L176: 5
B177: P116 | C177: 2007-05-13 | D177: Kask | E177: Pärnu | F177: lepp | G177: 1 | H177: Hunt | I177: 41 | J177: 650 | K177: 26650 | L177: 5
B178: P116 | C178: 2007-05-13 | D178: Kask | E178: Pärnu | F178: lepp | G178: 2 | H178: Hunt | I178: 14 | J178: 585 | K178: 8190 | L178: 5
B179: P117 | C179: 2007-05-14 | D179: Kaun | E179: Pärnu | F179: kuusk | G179: 3 | H179: Jänes | I179: 55 | J179: 640 | K179: 35200 | L179: 5
B180: P118 | C180: 2007-05-15 | D180: Lind | E180: Valga | F180: küte | G180: 1 | H180: Rebane | I180: 44 | J180: 470 | K180: 20680 | L180: 5
B181: P119 | C181: 2007-05-15 | D181: Lepp | E181: Viljandi | F181: kask | G181: 2 | H181: Karu | I181: 19 | J181: 630 | K181: 11970 | L181: 5
B182: P120 | C182: 2007-05-15 | D182: Luik | E182: Viljandi | F182: lepp | G182: 3 | H182: Siil | I182: 33 | J182: 520 | K182: 17160 | L182: 5
B183: P121 | C183: 2007-05-16 | D183: Pihel | E183: Rapla | F183: lepp | G183: 1 | H183: Karu | I183: 17 | J183: 650 | K183: 11050 | L183: 5
B184: P122 | C184: 2007-05-17 | D184: Lepik | E184: Paide | F184: küte | G184: 3 | H184: Ilves | I184: 13 | J184: 376 | K184: 4888 | L184: 5
B185: P122 | C185: 2007-05-17 | D185: Lepik | E185: Paide | F185: mänd | G185: 2 | H185: Ilves | I185: 76 | J185: 675 | K185: 51300 | L185: 5
B186: P123 | C186: 2007-05-17 | D186: Kask | E186: Pärnu | F186: mänd | G186: 1 | H186: Hunt | I186: 47 | J186: 750 | K186: 35250 | L186: 5
B187: P124 | C187: 2007-05-18 | D187: Luik | E187: Viljandi | F187: tamm | G187: 1 | H187: Põder | I187: 32 | J187: 1100 | K187: 35200 | L187: 5
B188: P125 | C188: 2007-05-19 | D188: Lepp | E188: Viljandi | F188: haab | G188: 3 | H188: Põder | I188: 65 | J188: 400 | K188: 26000 | L188: 5
B189: P126 | C189: 2007-05-21 | D189: Kask | E189: Pärnu | F189: tamm | G189: 1 | H189: Ilves | I189: 30 | J189: 1100 | K189: 33000 | L189: 5
B190: P127 | C190: 2007-05-22 | D190: Kaasik | E190: Pärnu | F190: kuusk | G190: 2 | H190: Ilves | I190: 74 | J190: 720 | K190: 53280 | L190: 5
B191: P128 | C191: 2007-05-23 | D191: Saar | E191: Valga | F191: küte | G191: 3 | H191: Karu | I191: 30 | J191: 376 | K191: 11280 | L191: 5
B192: P129 | C192: 2007-05-26 | D192: Tuvi | E192: Harju | F192: lepp | G192: 1 | H192: Siil | I192: 24 | J192: 650 | K192: 15600 | L192: 5
B193: P130 | C193: 2007-05-27 | D193: Juur | E193: Pärnu | F193: haab | G193: 1 | H193: Hunt | I193: 20 | J193: 500 | K193: 10000 | L193: 5
B194: P130 | C194: 2007-05-27 | D194: Juur | E194: Pärnu | F194: küte | G194: 2 | H194: Hunt | I194: 11 | J194: 423 | K194: 4653 | L194: 5
B195: P131 | C195: 2007-05-29 | D195: Känd | E195: Harju | F195: mänd | G195: 3 | H195: Hunt | I195: 79 | J195: 600 | K195: 47400 | L195: 5
B196: P132 | C196: 2007-05-30 | D196: Seen | E196: Võru | F196: küte | G196: 2 | H196: Rebane | I196: 12 | J196: 423 | K196: 5076 | L196: 5
B197: P132 | C197: 2007-05-30 | D197: Seen | E197: Võru | F197: mänd | G197: 3 | H197: Rebane | I197: 28 | J197: 600 | K197: 16800 | L197: 5
B198: P133 | C198: 2007-06-02 | D198: Saar | E198: Valga | F198: küte | G198: 1 | H198: Hunt | I198: 51 | J198: 470 | K198: 23970 | L198: 6
B199: P134 | C199: 2007-06-04 | D199: Lepp | E199: Viljandi | F199: kuusk | G199: 1 | H199: Siil | I199: 31 | J199: 800 | K199: 24800 | L199: 6
B200: P135 | C200: 2007-06-05 | D200: Lind | E200: Valga | F200: kask | G200: 2 | H200: Rebane | I200: 23 | J200: 630 | K200: 14490 | L200: 6
B201: P136 | C201: 2007-06-08 | D201: Seen | E201: =VLOOKUP(P_ostja, o_tab, 2, 0) -> Võru | F201: küte | G201: 1 | H201: Hunt | I201: 56 | J201: =VLOOKUP(P_liik, P_hinnad, P_sort+1, 0) -> 470 | K201: =P_hind * P_kogus -> 26320 | L201: =MONTH(P_kuupäev) -> 6
B202: P137 | C202: 2007-06-09 | D202: Seen | E202: Võru | F202: haab | G202: 1 | H202: Siil | I202: 52 | J202: 500 | K202: 26000 | L202: 6
B203: P138 | C203: 2007-06-10 | D203: Lepp | E203: Viljandi | F203: kuusk | G203: 1 | H203: Hunt | I203: 54 | J203: 800 | K203: 43200 | L203: 6
B204: P138 | C204: 2007-06-10 | D204: Lepp | E204: Viljandi | F204: vaher | G204: 3 | H204: Hunt | I204: 25 | J204: 760 | K204: 19000 | L204: 6
... 233 more rows

Sheet Filter_PM1
B2: P_arve | C2: P_kuupäev | D2: P_ostja | E2: P_maa | F2: P_liik | G2: P_sort | H2: P_müüja | I2: P_kogus | J2: P_hind | K2: P_maks | L2: P_kuu | N2: P_maa | O2: P_ostja | P2: P_liik | Q2: P_müüja
B4: Etteantud kuu kirjed. Kriteeriumis kasutatakse valideerimist
B5: P_kuu | N5: P_maa | O5: P_ostja | P5: P_liik | Q5: P_müüja
B6: 12 | N6: Võru | O6: Seen | P6: mänd | Q6: Siil
N7: Pärnu | O7: Haab | P7: kask | Q7: Karu
B8: P_arve | C8: P_kuupäev | D8: P_ostja | E8: P_maa | F8: P_liik | G8: P_sort | H8: P_müüja | I8: P_kogus | J8: P_hind | K8: P_maks | L8: P_kuu | N8: Lääne | O8: Karu | P8: vaher | Q8: Põder
B9: P273 | C9: 2007-12-01 | D9: Tuvi | E9: Harju | F9: kask | G9: 2 | H9: Karu | I9: 48 | J9: 630 | K9: 30240 | L9: 12 | N9: Valga | O9: Juur | P9: lepp | Q9: Rebane
B10: P274 | C10: 2007-12-01 | D10: Varblane | E10: Harju | F10: lepp | G10: 1 | H10: Siil | I10: 67 | J10: 650 | K10: 43550 | L10: 12 | N10: Rapla | O10: Lind | P10: küte | Q10: Jänes
B11: P275 | C11: 2007-12-01 | D11: Karu | E11: Lääne | F11: kuusk | G11: 1 | H11: Hunt | I11: 47 | J11: 800 | K11: 37600 | L11: 12 | N11: Harju | O11: Vaher | P11: kuusk | Q11: Hunt
B12: P275 | C12: 2007-12-01 | D12: Karu | E12: Lääne | F12: küte | G12: 2 | H12: Hunt | I12: 17 | J12: 423 | K12: 7191 | L12: 12 | N12: Viljandi | O12: Mänd | P12: saar | Q12: Ilves
B13: P275 | C13: 2007-12-01 | D13: Karu | E13: Lääne | F13: lepp | G13: 2 | H13: Hunt | I13: 8 | J13: 585 | K13: 4680 | L13: 12 | N13: Paide | O13: Lepp | P13: tamm
B14: P276 | C14: 2007-12-02 | D14: Saar | E14: Valga | F14: kuusk | G14: 1 | H14: Karu | I14: 36 | J14: 800 | K14: 28800 | L14: 12 | O14: Lepik | P14: haab
B15: P277 | C15: 2007-12-03 | D15: Vaher | E15: Rapla | F15: lepp | G15: 2 | H15: Jänes | I15: 21 | J15: 585 | K15: 12285 | L15: 12 | O15: Vares
B16: P278 | C16: 2007-12-05 | D16: Lepp | E16: Viljandi | F16: kuusk | G16: 3 | H16: Jänes | I16: 55 | J16: 640 | K16: 35200 | L16: 12 | O16: Kask
B17: P279 | C17: 2007-12-08 | D17: Saar | E17: Valga | F17: haab | G17: 1 | H17: Rebane | I17: 21 | J17: 500 | K17: 10500 | L17: 12 | O17: Varblane
B18: P280 | C18: 2007-12-09 | D18: Karu | E18: Lääne | F18: kuusk | G18: 2 | H18: Põder | I18: 33 | J18: 720 | K18: 23760 | L18: 12 | O18: Ilves
B19: P281 | C19: 2007-12-10 | D19: Kuusk | E19: Lääne | F19: haab | G19: 1 | H19: Karu | I19: 34 | J19: 500 | K19: 17000 | L19: 12 | O19: Paju
B20: P281 | C20: 2007-12-10 | D20: Kuusk | E20: Lääne | F20: küte | G20: 1 | H20: Karu | I20: 54 | J20: 470 | K20: 25380 | L20: 12 | O20: Pihel
B21: P281 | C21: 2007-12-10 | D21: Kuusk | E21: Lääne | F21: mänd | G21: 1 | H21: Karu | I21: 78 | J21: 750 | K21: 58500 | L21: 12 | O21: Kaun
B22: P282 | C22: 2007-12-11 | D22: Vares | E22: Rapla | F22: kuusk | G22: 2 | H22: Karu | I22: 78 | J22: 720 | K22: 56160 | L22: 12 | O22: Kuusik
B23: P282 | C23: 2007-12-11 | D23: Vares | E23: Rapla | F23: lepp | G23: 1 | H23: Karu | I23: 53 | J23: 650 | K23: 34450 | L23: 12 | O23: Känd
B24: P282 | C24: 2007-12-11 | D24: Vares | E24: Rapla | F24: saar | G24: 1 | H24: Karu | I24: 26 | J24: 850 | K24: 22100 | L24: 12 | O24: Tuvi
B25: P283 | C25: 2007-12-12 | D25: Tuvi | E25: Harju | F25: kuusk | G25: 1 | H25: Karu | I25: 63 | J25: 800 | K25: 50400 | L25: 12 | O25: Luik
B26: P284 | C26: 2007-12-13 | D26: Tuvi | E26: Harju | F26: kuusk | G26: 1 | H26: Hunt | I26: 26 | J26: 800 | K26: 20800 | L26: 12 | O26: Saar
B27: P284 | C27: 2007-12-13 | D27: Tuvi | E27: Harju | F27: tamm | G27: 2 | H27: Hunt | I27: 18 | J27: 990 | K27: 17820 | L27: 12 | O27: Kass
B28: P285 | C28: 2007-12-16 | D28: Seen | E28: Võru | F28: küte | G28: 1 | H28: Karu | I28: 33 | J28: 470 | K28: 15510 | L28: 12 | O28: Kaasik
B29: P285 | C29: 2007-12-16 | D29: Seen | E29: Võru | F29: mänd | G29: 3 | H29: Karu | I29: 60 | J29: 600 | K29: 36000 | L29: 12 | O29: Kuusk
B30: P286 | C30: 2007-12-20 | D30: Karu | E30: Lääne | F30: lepp | G30: 1 | H30: Karu | I30: 26 | J30: 650 | K30: 16900 | L30: 12
B31: P287 | C31: 2007-12-21 | D31: Vaher | E31: Rapla | F31: kuusk | G31: 3 | H31: Siil | I31: 32 | J31: 640 | K31: 20480 | L31: 12
B32: P288 | C32: 2007-12-22 | D32: Pihel | E32: Rapla | F32: küte | G32: 1 | H32: Jänes | I32: 12 | J32: 470 | K32: 5640 | L32: 12
B33: P289 | C33: 2007-12-23 | D33: Vaher | E33: Rapla | F33: vaher | G33: 1 | H33: Hunt | I33: 18 | J33: 950 | K33: 17100 | L33: 12
B34: P290 | C34: 2007-12-24 | D34: Seen | E34: Võru | F34: kuusk | G34: 1 | H34: Ilves | I34: 78 | J34: 800 | K34: 62400 | L34: 12
B35: P291 | C35: 2007-12-27 | D35: Vaher | E35: Rapla | F35: saar | G35: 2 | H35: Ilves | I35: 36 | J35: 765 | K35: 27540 | L35: 12
B36: P291 | C36: 2007-12-27 | D36: Vaher | E36: Rapla | F36: saar | G36: 3 | H36: Ilves | I36: 26 | J36: 680 | K36: 17680 | L36: 12
B37: P292 | C37: 2007-12-27 | D37: Lepp | E37: Viljandi | F37: haab | G37: 1 | H37: Hunt | I37: 42 | J37: 500 | K37: 21000 | L37: 12
B38: P292 | C38: 2007-12-27 | D38: Lepp | E38: Viljandi | F38: mänd | G38: 1 | H38: Hunt | I38: 65 | J38: 750 | K38: 48750 | L38: 12
B39: P293 | C39: 2007-12-28 | D39: Lepik | E39: Paide | F39: lepp | G39: 2 | H39: Ilves | I39: 45 | J39: 585 | K39: 26325 | L39: 12
B40: P293 | C40: 2007-12-28 | D40: Lepik | E40: Paide | F40: vaher | G40: 1 | H40: Ilves | I40: 21 | J40: 950 | K40: 19950 | L40: 12
B41: P294 | C41: 2007-12-29 | D41: Seen | E41: Võru | F41: haab | G41: 2 | H41: Karu | I41: 13 | J41: 450 | K41: 5850 | L41: 12
B42: P295 | C42: 2007-12-30 | D42: Lepp | E42: Viljandi | F42: saar | G42: 1 | H42: Karu | I42: 17 | J42: 850 | K42: 14450 | L42: 12
B43: P296 | C43: 2007-12-30 | D43: Saar | E43: Valga | F43: kuusk | G43: 1 | H43: Jänes | I43: 25 | J43: 800 | K43: 20000 | L43: 12

Sheet Filter_PM2
B2: P_arve | C2: P_kuupäev | D2: P_ostja | E2: P_maa | F2: P_liik | G2: P_sort | H2: P_müüja | I2: P_kogus | J2: P_hind | K2: P_maks | L2: P_kuu
B5: Väljad kuupäev, arve, müüja, ostja, kogus ja maksumus etteantud maakonna ja puu liigi jaoks
B6: P_maa | C6: P_liik | J6: P_liik | K6: P_kuupäev | L6: P_kuupäev
B7: Pärnu | C7: küte | J7: mänd | K7: >=1.01.2007 | L7: <=31.03.2007
B9: P_kuupäev | C9: P_arve | D9: P_müüja | E9: P_ostja | F9: P_kogus | G9: P_maks | K9: Kokku | L9: =SUM(L12:L112) -> 649 | M9: =SUM(M12:M112) -> 460575
B10: 2007-01-23 | C10: P020 | D10: Põder | E10: Kaun | F10: 48 | G10: 22560
B11: 2007-05-09 | C11: P112 | D11: Karu | E11: Haab | F11: 18 | G11: 8460 | J11: P_müüja | K11: P_kuupäev | L11: P_kogus | M11: P_maks
B12: 2007-05-11 | C12: P115 | D12: Ilves | E12: Juur | F12: 71 | G12: 33370 | J12: Siil | K12: 2007-01-02 | L12: 28 | M12: 18900
B13: 2007-05-27 | C13: P130 | D13: Hunt | E13: Juur | F13: 11 | G13: 4653 | J13: Rebane | K13: 2007-01-06 | L13: 37 | M13: 24975
B14: 2007-08-17 | C14: P184 | D14: Karu | E14: Kaun | F14: 14 | G14: 6580 | J14: Hunt | K14: 2007-01-09 | L14: 55 | M14: 41250
B15: 2007-09-15 | C15: P208 | D15: Ilves | E15: Kask | F15: 71 | G15: 33370 | J15: Hunt | K15: 2007-01-09 | L15: 39 | M15: 26325
B16: 2007-10-09 | C16: P230 | D16: Põder | E16: Haab | F16: 30 | G16: 14100 | J16: Siil | K16: 2007-01-14 | L16: 40 | M16: 30000
B17: 2007-11-03 | C17: P255 | D17: Rebane | E17: Kaun | F17: 61 | G17: 28670 | J17: Jänes | K17: 2007-01-24 | L17: 73 | M17: 54750
B18: 2007-11-09 | C18: P259 | D18: Hunt | E18: Kask | F18: 30 | G18: 14100 | J18: Jänes | K18: 2007-02-02 | L18: 53 | M18: 39750
J19: Siil | K19: 2007-02-05 | L19: 30 | M19: 22500
B20: P_kuupäev | C20: P_arve | D20: P_müüja | E20: P_ostja | F20: P_kogus | G20: P_maks | J20: Ilves | K20: 2007-02-18 | L20: 36 | M20: 27000
B21: 2007-01-23 | C21: P020 | D21: Põder | E21: Kaun | F21: 48 | G21: 22560 | J21: Siil | K21: 2007-02-20 | L21: 74 | M21: 55500
B22: 2007-05-09 | C22: P112 | D22: Karu | E22: Haab | F22: 18 | G22: 8460 | J22: Hunt | K22: 2007-02-25 | L22: 33 | M22: 19800
B23: 2007-05-11 | C23: P115 | D23: Ilves | E23: Juur | F23: 71 | G23: 33370 | J23: Jänes | K23: 2007-03-06 | L23: 49 | M23: 33075
B24: 2007-05-27 | C24: P130 | D24: Hunt | E24: Juur | F24: 11 | G24: 4653 | J24: Rebane | K24: 2007-03-08 | L24: 28 | M24: 16800
B25: 2007-08-17 | C25: P184 | D25: Karu | E25: Kaun | F25: 14 | G25: 6580 | J25: Siil | K25: 2007-03-08 | L25: 22 | M25: 14850
B26: 2007-09-15 | C26: P208 | D26: Ilves | E26: Kask | F26: 71 | G26: 33370 | J26: Siil | K26: 2007-03-19 | L26: 52 | M26: 35100
B27: 2007-10-09 | C27: P230 | D27: Põder | E27: Haab | F27: 30 | G27: 14100
B28: 2007-11-03 | C28: P255 | D28: Rebane | E28: Kaun | F28: 61 | G28: 28670
B29: 2007-11-09 | C29: P259 | D29: Hunt | E29: Kask | F29: 30 | G29: 14100

Sheet Rist_PM
B2: Puidu maksumus maakondade (read) ja liikide (veerud) lõikes
B3: Sum of P_maks | C3: P_liik
B4: P_maa | C4: haab | D4: kask | E4: kuusk | F4: küte | G4: lepp | H4: mänd | I4: saar | J4: tamm | K4: vaher | L4: Grand Total
B5: Harju | C5: 173600 | D5: 288680 | E5: 379840 | F5: 117406 | G5: 223340 | H5: 497700 | I5: 314500 | J5: 115610 | K5: 51300 | L5: 2161976
B6: Lääne | C6: 56300 | D6: 329700 | E6: 191120 | F6: 121448 | G6: 279760 | H6: 304800 | I6: 221170 | J6: 51590 | K6: 124830 | L6: 1680718
B7: Paide | C7: 33750 | D7: 34720 | E7: 54400 | F7: 74918 | G7: 60125 | H7: 292725 | I7: 99280 | J7: 51370 | K7: 49400 | L7: 750688
B8: Pärnu | C8: 224050 | D8: 204890 | E8: 336960 | F8: 165863 | G8: 329160 | H8: 387600 | I8: 110075 | J8: 353870 | K8: 119985 | L8: 2232453
B9: Rapla | C9: 45000 | D9: 113820 | E9: 161760 | F9: 55225 | G9: 163085 | H9: 97050 | I9: 82960 | J9: 88000 | K9: 17100 | L9: 824000
B10: Valga | C10: 69300 | D10: 66990 | E10: 273680 | F10: 158484 | G10: 167830 | H10: 260100 | I10: 105485 | J10: 40700 | K10: 27360 | L10: 1169929
B11: Viljandi | C11: 160450 | D11: 179900 | E11: 287920 | F11: 138321 | G11: 155480 | H11: 92700 | I11: 51000 | J11: 131010 | K11: 41610 | L11: 1238391
B12: Võru | C12: 73450 | D12: 111300 | E12: 198240 | F12: 148755 | G12: 76115 | H12: 320700 | I12: 139060 | K12: 76190 | L12: 1143810
B13: Grand Total | C13: 835900 | D13: 1330000 | E13: 1883920 | F13: 980420 | G13: 1454895 | H13: 2253375 | I13: 1123530 | J13: 832150 | K13: 507775 | L13: 11201965
B16: Müükide kogused kvartalite (read), müüjate (veerud) ja maakondade (lehekülg) lõikes
B17: P_maa | C17: (All)
B19: Sum of P_kogus | D19: P_müüja
B20: Quarters | C20: P_kuupäev | D20: Hunt | E20: Ilves | F20: Jänes | G20: Karu | H20: Põder | I20: Rebane | J20: Siil | K20: Grand Total
B21: Qtr1 | C21: jaan | D21: 320 | E21: 86 | F21: 360 | G21: 232 | H21: 142 | I21: 37 | J21: 241 | K21: 1418
C22: veebr | D22: 219 | E22: 181 | F22: 107 | G22: 292 | H22: 119 | I22: 34 | J22: 142 | K22: 1094
C23: märts | D23: 154 | E23: 300 | F23: 184 | G23: 498 | H23: 75 | I23: 94 | J23: 308 | K23: 1613
B24: Qtr2 | C24: apr | D24: 406 | E24: 629 | F24: 211 | G24: 212 | H24: 226 | I24: 107 | J24: 114 | K24: 1905
C25: mai | D25: 212 | E25: 413 | F25: 198 | G25: 106 | H25: 141 | I25: 113 | J25: 57 | K25: 1240
C26: juuni | D26: 186 | E26: 84 | F26: 36 | G26: 210 | H26: 113 | I26: 215 | J26: 107 | K26: 951
B27: Qtr3 | C27: juuli | D27: 109 | E27: 234 | F27: 102 | G27: 112 | H27: 448 | I27: 83 | J27: 23 | K27: 1111
C28: aug | D28: 229 | F28: 163 | G28: 384 | H28: 177 | I28: 313 | J28: 140 | K28: 1406
C29: sept | D29: 92 | E29: 339 | F29: 217 | G29: 21 | H29: 78 | I29: 548 | J29: 96 | K29: 1391
B30: Qtr4 | C30: okt | D30: 115 | E30: 713 | F30: 135 | G30: 776 | H30: 220 | I30: 77 | J30: 227 | K30: 2263
C31: nov | D31: 339 | E31: 222 | F31: 155 | G31: 188 | H31: 132 | I31: 195 | J31: 144 | K31: 1375
C32: dets | D32: 241 | E32: 206 | F32: 113 | G32: 619 | H32: 33 | I32: 21 | J32: 99 | K32: 1332
B33: Grand Total | D33: 2622 | E33: 3407 | F33: 1981 | G33: 3650 | H33: 1904 | I33: 1837 | J33: 1698 | K33: 17099

Sheet SumIF_PM
B3: Maakond | C3: Kogus | D3: Maksumus
B4: Harju | C4: =SUMIF(P_maa, Maakond, P_kogus) -> 3237 | D4: =SUMIF(P_maa, Maakond, P_maks) -> 2161976
B5: Lääne | C5: 2508 | D5: 1680718
B6: Paide | C6: 1146 | D6: 750688
B7: Pärnu | C7: 3365 | D7: 2232453
B8: Rapla | C8: 1254 | D8: 824000
B9: Valga | C9: 1818 | D9: 1169929
B10: Viljandi | C10: 1991 | D10: 1238391
B11: Võru | C11: 1780 | D11: 1143810
B13: Kokku | C13: =SUM(C4:C12) -> 17099 | D13: =SUM(D4:D12) -> 11201965
B16: Müüja | C16: Kogus | D16: Maksumus | E16: Müükide arv
B17: Karu | C17: =SUMIF(P_müüja, Müüja, P_kogus) -> 3650 | D17: =SUMIF(P_müüja, Müüja, P_maks) -> 2321514 | E17: =COUNTIF(P_müüja, Müüja) -> 89
B18: Hunt | C18: 2622 | D18: 1767735 | E18: 76
B19: Jänes | C19: 1981 | D19: 1329925 | E19: 50
B20: Rebane | C20: 1837 | D20: 1184385 | E20: 50
B21: Siil | C21: 1698 | D21: 1123966 | E21: 47
B22: Põder | C22: 1904 | D22: 1215357 | E22: 44
B23: Ilves | C23: 3407 | D23: 2259083 | E23: 73
B25: Kokku | C25: =SUM(C17:C24) -> 17099 | D25: =SUM(D17:D24) -> 11201965 | E25: =SUM(E17:E24) -> 429

Sheet Sort
J1: Harjutustabelid
J2: Töötajad | K2: Puidu müük
I4: Arvutite müükide arvestus
I6: Kuupäev | J6: Linn | K6: Arvuti | L6: Arv | M6: Hind | N6: Maksumus
I7: 2007-01-02 | J7: Tallinn | K7: Frodo | L7: 2 | M7: =VLOOKUP(Arvuti, Arvutid, 6, 0) -> 1330 | N7: =Hind * Arv -> 2660
I8: 2007-01-02 | J8: Valga | K8: Balrog | L8: 1 | M8: 419 | N8: 419
I9: 2007-01-03 | J9: Tallinn | K9: Aragorn | L9: 2 | M9: 499 | N9: 998
I10: 2007-01-03 | J10: Tallinn | K10: Balrog | L10: 3 | M10: 419 | N10: 1257
I11: 2007-01-03 | J11: Võru | K11: Gandalf | L11: 2 | M11: 849 | N11: 1698
I12: 2007-01-04 | J12: Tallinn | K12: Eldar | L12: 3 | M12: 465 | N12: 1395
I13: 2007-01-04 | J13: Tartu | K13: Balrog | L13: 5 | M13: 419 | N13: 2095
I14: 2007-01-07 | J14: Pärnu | K14: Eldar | L14: 3 | M14: 465 | N14: 1395
I15: 2007-01-07 | J15: Tallinn | K15: Faram | L15: 1 | M15: 599 | N15: 599
I16: 2007-01-07 | J16: Valga | K16: Balrog | L16: 6 | M16: 419 | N16: 2514
I17: 2007-01-07 | J17: Valga | K17: Frodo | L17: 1 | M17: 1330 | N17: 1330
I18: 2007-01-09 | J18: Tallinn | K18: Grimbold | L18: 6 | M18: 1149 | N18: 6894
I19: 2007-01-10 | J19: Pärnu | K19: Elend | L19: 1 | M19: 1299 | N19: 1299
I20: 2007-01-10 | J20: Pärnu | K20: Rohan | L20: 4 | M20: 589 | N20: 2356
I21: 2007-01-10 | J21: Tartu | K21: Sauron | L21: 2 | M21: 339 | N21: 678
I22: 2007-01-11 | J22: Tallinn | K22: Marvin | L22: 1 | M22: 599 | N22: 599
I23: 2007-01-11 | J23: Tartu | K23: Balrog | L23: 2 | M23: 419 | N23: 838
I24: 2007-01-11 | J24: Valga | K24: Aragorn | L24: 1 | M24: 499 | N24: 499
I25: 2007-01-14 | J25: Pärnu | K25: Gandalf | L25: 3 | M25: 849 | N25: 2547
I26: 2007-01-14 | J26: Tartu | K26: Frodo | L26: 4 | M26: 1330 | N26: 5320
I27: 2007-01-14 | J27: Valga | K27: Kalvar | L27: 2 | M27: 699 | N27: 1398
I28: 2007-01-16 | J28: Tallinn | K28: Arven | L28: 5 | M28: 369 | N28: 1845
I29: 2007-01-17 | J29: Tallinn | K29: Kalvar | L29: 7 | M29: 699 | N29: 4893
I30: 2007-01-17 | J30: Tartu | K30: Aragorn | L30: 3 | M30: 499 | N30: 1497
I31: 2007-01-18 | J31: Pärnu | K31: Eldar | L31: 1 | M31: 465 | N31: 465
I32: 2007-01-18 | J32: Tallinn | K32: Aragorn | L32: 1 | M32: 499 | N32: 499
I33: 2007-01-19 | J33: Tallinn | K33: Faram | L33: 3 | M33: 599 | N33: 1797
I34: 2007-01-19 | J34: Tartu | K34: Kalvar | L34: 1 | M34: 699 | N34: 699
I35: 2007-01-19 | J35: Võru | K35: Elend | L35: 5 | M35: 1299 | N35: 6495
I36: 2007-01-20 | J36: Tallinn | K36: Elend | L36: 2 | M36: 1299 | N36: 2598
I37: 2007-01-20 | J37: Võru | K37: Sauron | L37: 3 | M37: 339 | N37: 1017
I38: 2007-01-21 | J38: Pärnu | K38: Arven | L38: 1 | M38: 369 | N38: 369
I39: 2007-01-25 | J39: Võru | K39: Sauron | L39: 1 | M39: 339 | N39: 339
I40: 2007-01-26 | J40: Pärnu | K40: Gandalf | L40: 2 | M40: 849 | N40: 1698

Sheet Päringud

Sheet Autofilter
I1: Harjutustabelid
I2: töötajad | J2: puidu müük
B3: AutoFilter - Data/Filter/AutoFilter
I4: Arvutite müükide arvestus | L4: =SUBTOTAL(9, L7:L40) -> 90 | M4: =SUBTOTAL(1, M7:M40) -> 7285 | N4: =SUBTOTAL(9, N7:N40) -> 659230
I6: Kuupäev | J6: Linn | K6: Arvuti | L6: Arv | M6: Hind | N6: Maksumus
I7: 2007-01-02 | J7: Valga | K7: Balrog | L7: 1 | M7: 4190 | N7: 4190
I8: 2007-01-03 | J8: Võru | K8: Gandalf | L8: 2 | M8: 8490 | N8: 16980
I9: 2007-01-03 | J9: Tallinn | K9: Aragorn | L9: 2 | M9: 4990 | N9: 9980
I10: 2007-01-03 | J10: Tallinn | K10: Balrog | L10: 3 | M10: 4190 | N10: 12570
I11: 2007-01-09 | J11: Tallinn | K11: Grimbold | L11: 6 | M11: 11490 | N11: 68940
I12: 2007-01-19 | J12: Võru | K12: Elend | L12: 5 | M12: 12990 | N12: 64950
I13: 2007-01-04 | J13: Tallinn | K13: Eldar | L13: 3 | M13: 4650 | N13: 13950
I14: 2007-01-10 | J14: Tartu | K14: Sauron | L14: 2 | M14: 3390 | N14: 6780
I15: 2007-01-07 | J15: Pärnu | K15: Eldar | L15: 3 | M15: 4650 | N15: 13950
I16: 2007-01-07 | J16: Tallinn | K16: Faram | L16: 1 | M16: 5990 | N16: 5990
I17: 2007-01-26 | J17: Pärnu | K17: Gandalf | L17: 2 | M17: 8490 | N17: 16980
I18: 2007-01-11 | J18: Tartu | K18: Balrog | L18: 2 | M18: 4190 | N18: 8380
I19: 2007-01-10 | J19: Pärnu | K19: Elend | L19: 1 | M19: 12990 | N19: 12990
I20: 2007-01-02 | J20: Tallinn | K20: Frodo | L20: 2 | M20: 13300 | N20: 26600
I21: 2007-01-11 | J21: Tallinn | K21: Frodo | L21: 1 | M21: 13300 | N21: 13300
I22: 2007-01-11 | J22: Valga | K22: Aragorn | L22: 1 | M22: 4990 | N22: 4990
I23: 2007-01-14 | J23: Tartu | K23: Frodo | L23: 4 | M23: 13300 | N23: 53200
I24: 2007-01-16 | J24: Tallinn | K24: Arven | L24: 5 | M24: 3690 | N24: 18450
I25: 2007-01-17 | J25: Tallinn | K25: Balrog | L25: 7 | M25: 6990 | N25: 48930
I26: 2007-01-14 | J26: Pärnu | K26: Gandalf | L26: 3 | M26: 8490 | N26: 25470
I27: 2007-01-14 | J27: Valga | K27: Kalvar | L27: 2 | M27: 6990 | N27: 13980
I28: 2007-01-17 | J28: Tartu | K28: Aragorn | L28: 3 | M28: 4990 | N28: 14970
I29: 2007-01-18 | J29: Tallinn | K29: Aragorn | L29: 1 | M29: 4990 | N29: 4990
I30: 2007-01-07 | J30: Valga | K30: Balrog | L30: 6 | M30: 4190 | N30: 25140
I31: 2007-01-19 | J31: Tallinn | K31: Frodo | L31: 3 | M31: 13300 | N31: 39900
I32: 2007-01-18 | J32: Pärnu | K32: Eldar | L32: 1 | M32: 4650 | N32: 4650
I33: 2007-01-10 | J33: Pärnu | K33: Rohan | L33: 4 | M33: 5890 | N33: 23560
I34: 2007-01-19 | J34: Tartu | K34: Kalvar | L34: 1 | M34: 6990 | N34: 6990
I35: 2007-01-20 | J35: Tallinn | K35: Elend | L35: 2 | M35: 12990 | N35: 25980
I36: 2007-01-07 | J36: Valga | K36: Frodo | L36: 1 | M36: 13300 | N36: 13300
I37: 2007-01-20 | J37: Võru | K37: Sauron | L37: 3 | M37: 3390 | N37: 10170
I38: 2007-01-21 | J38: Pärnu | K38: Arven | L38: 1 | M38: 3690 | N38: 3690
I39: 2007-01-25 | J39: Võru | K39: Sauron | L39: 1 | M39: 3390 | N39: 3390
I40: 2007-01-04 | J40: Tartu | K40: Balrog | L40: 5 | M40: 4190 | N40: 20950

Sheet Auto_AM
B3: arvuti on Balrog | I3: müügid, kuus kuupäev on vahemikus 10.01.07 kuni 20.01.07
B4: Kuupäev | C4: Linn | D4: Arvuti | E4: Arv | F4: Hind | G4: Maksumus | I4: Kuupäev | J4: Linn | K4: Arvuti | L4: Arv | M4: Hind | N4: Maksumus
B5: 2007-01-02 | C5: Valga | D5: Balrog | E5: 1 | F5: 4190 | G5: 4190 | I5: 2007-01-10 | J5: Tartu | K5: Sauron | L5: 2 | M5: 3390 | N5: 6780
B6: 2007-01-03 | C6: Tallinn | D6: Balrog | E6: 3 | F6: 4190 | G6: 12570 | I6: 2007-01-10 | J6: Pärnu | K6: Elend | L6: 1 | M6: 12990 | N6: 12990
B7: 2007-01-11 | C7: Tartu | D7: Balrog | E7: 2 | F7: 4190 | G7: 8380 | I7: 2007-01-10 | J7: Pärnu | K7: Rohan | L7: 4 | M7: 5890 | N7: 23560
B8: 2007-01-17 | C8: Tallinn | D8: Balrog | E8: 7 | F8: 6990 | G8: 48930 | I8: 2007-01-11 | J8: Tartu | K8: Balrog | L8: 2 | M8: 4190 | N8: 8380
B9: 2007-01-07 | C9: Valga | D9: Balrog | E9: 6 | F9: 4190 | G9: 25140 | I9: 2007-01-11 | J9: Tallinn | K9: Frodo | L9: 1 | M9: 13300 | N9: 13300
B10: 2007-01-04 | C10: Tartu | D10: Balrog | E10: 5 | F10: 4190 | G10: 20950 | I10: 2007-01-11 | J10: Valga | K10: Aragorn | L10: 1 | M10: 4990 | N10: 4990
I11: 2007-01-14 | J11: Tartu | K11: Frodo | L11: 4 | M11: 13300 | N11: 53200
B12: linn on Tallinn ja arvuti on Frodo | I12: 2007-01-14 | J12: Pärnu | K12: Gandalf | L12: 3 | M12: 8490 | N12: 25470
B13: Kuupäev | C13: Linn | D13: Arvuti | E13: Arv | F13: Hind | G13: Maksumus | I13: 2007-01-14 | J13: Valga | K13: Kalvar | L13: 2 | M13: 6990 | N13: 13980
B14: 2007-01-02 | C14: Tallinn | D14: Frodo | E14: 2 | F14: 13300 | G14: 26600 | I14: 2007-01-16 | J14: Tallinn | K14: Arven | L14: 5 | M14: 3690 | N14: 18450
B15: 2007-01-11 | C15: Tallinn | D15: Frodo | E15: 1 | F15: 13300 | G15: 13300 | I15: 2007-01-17 | J15: Tallinn | K15: Balrog | L15: 7 | M15: 6990 | N15: 48930
B16: 2007-01-19 | C16: Tallinn | D16: Frodo | E16: 3 | F16: 13300 | G16: 39900 | I16: 2007-01-17 | J16: Tartu | K16: Aragorn | L16: 3 | M16: 4990 | N16: 14970
I17: 2007-01-18 | J17: Tallinn | K17: Aragorn | L17: 1 | M17: 4990 | N17: 4990
B18: linn on Tallinn või Tartu | E18: Custom | I18: 2007-01-18 | J18: Pärnu | K18: Eldar | L18: 1 | M18: 4650 | N18: 4650
B19: Kuupäev | C19: Linn | D19: Arvuti | E19: Arv | F19: Hind | G19: Maksumus | I19: 2007-01-19 | J19: Võru | K19: Elend | L19: 5 | M19: 12990 | N19: 64950
B20: 2007-01-03 | C20: Tallinn | D20: Aragorn | E20: 2 | F20: 4990 | G20: 9980 | I20: 2007-01-19 | J20: Tallinn | K20: Frodo | L20: 3 | M20: 13300 | N20: 39900
B21: 2007-01-03 | C21: Tallinn | D21: Balrog | E21: 3 | F21: 4190 | G21: 12570 | I21: 2007-01-19 | J21: Tartu | K21: Kalvar | L21: 1 | M21: 6990 | N21: 6990
B22: 2007-01-09 | C22: Tallinn | D22: Grimbold | E22: 6 | F22: 11490 | G22: 68940
B23: 2007-01-04 | C23: Tallinn | D23: Eldar | E23: 3 | F23: 4650 | G23: 13950 | I23: Linn algab tähega T või tähega P ning arvuti on Eldar või Frodo
B24: 2007-01-07 | C24: Tallinn | D24: Faram | E24: 1 | F24: 5990 | G24: 5990 | I24: Kuupäev | J24: Linn | K24: Arvuti | L24: Arv | M24: Hind | N24: Maksumus
B25: 2007-01-02 | C25: Tallinn | D25: Frodo | E25: 2 | F25: 13300 | G25: 26600 | I25: 2007-01-04 | J25: Tallinn | K25: Eldar | L25: 3 | M25: 4650 | N25: 13950
B26: 2007-01-11 | C26: Tallinn | D26: Frodo | E26: 1 | F26: 13300 | G26: 13300 | I26: 2007-01-07 | J26: Pärnu | K26: Eldar | L26: 3 | M26: 4650 | N26: 13950
B27: 2007-01-16 | C27: Tallinn | D27: Arven | E27: 5 | F27: 3690 | G27: 18450 | I27: 2007-01-02 | J27: Tallinn | K27: Frodo | L27: 2 | M27: 13300 | N27: 26600
B28: 2007-01-17 | C28: Tallinn | D28: Balrog | E28: 7 | F28: 6990 | G28: 48930 | I28: 2007-01-11 | J28: Tallinn | K28: Frodo | L28: 1 | M28: 13300 | N28: 13300
B29: 2007-01-18 | C29: Tallinn | D29: Aragorn | E29: 1 | F29: 4990 | G29: 4990 | I29: 2007-01-14 | J29: Tartu | K29: Frodo | L29: 4 | M29: 13300 | N29: 53200
B30: 2007-01-19 | C30: Tallinn | D30: Frodo | E30: 3 | F30: 13300 | G30: 39900 | I30: 2007-01-19 | J30: Tallinn | K30: Frodo | L30: 3 | M30: 13300 | N30: 39900
B31: 2007-01-20 | C31: Tallinn | D31: Elend | E31: 2 | F31: 12990 | G31: 25980 | I31: 2007-01-18 | J31: Pärnu | K31: Eldar | L31: 1 | M31: 4650 | N31: 4650
B32: 2007-01-10 | C32: Tartu | D32: Sauron | E32: 2 | F32: 3390 | G32: 6780
B33: 2007-01-11 | C33: Tartu | D33: Balrog | E33: 2 | F33: 4190 | G33: 8380
B34: 2007-01-14 | C34: Tartu | D34: Frodo | E34: 4 | F34: 13300 | G34: 53200
B35: 2007-01-17 | C35: Tartu | D35: Aragorn | E35: 3 | F35: 4990 | G35: 14970
B36: 2007-01-19 | C36: Tartu | D36: Kalvar | E36: 1 | F36: 6990 | G36: 6990
B37: 2007-01-04 | C37: Tartu | D37: Balrog | E37: 5 | F37: 4190 | G37: 20950

Sheet Aren_Filter
J1: Harjutustabelid:
J2: Töötajad | K2: Puidu müük
I4: Arvutite müükide arvestus
I6: Kuupäev | J6: Linn | K6: Arvuti | L6: Arv | M6: Hind | N6: Maksumus
I7: 2007-01-02 | J7: Tallinn | K7: Frodo | L7: 2 | M7: 13300 | N7: 26600
I8: 2007-01-02 | J8: Valga | K8: Balrog | L8: 1 | M8: 4190 | N8: 4190
I9: 2007-01-03 | J9: Võru | K9: Gandalf | L9: 2 | M9: 8490 | N9: 16980
I10: 2007-01-03 | J10: Tallinn | K10: Balrog | L10: 3 | M10: 4190 | N10: 12570
I11: 2007-01-03 | J11: Tallinn | K11: Aragorn | L11: 2 | M11: 4990 | N11: 9980
I12: 2007-01-04 | J12: Tartu | K12: Balrog | L12: 5 | M12: 4190 | N12: 20950
I13: 2007-01-04 | J13: Tallinn | K13: Eldar | L13: 3 | M13: 4650 | N13: 13950
I14: 2007-01-07 | J14: Valga | K14: Balrog | L14: 6 | M14: 4190 | N14: 25140
I15: 2007-01-07 | J15: Pärnu | K15: Eldar | L15: 3 | M15: 4650 | N15: 13950
I16: 2007-01-07 | J16: Valga | K16: Frodo | L16: 1 | M16: 13300 | N16: 13300
I17: 2007-01-07 | J17: Tallinn | K17: Faram | L17: 1 | M17: 5990 | N17: 5990
I18: 2007-01-09 | J18: Tallinn | K18: Grimbold | L18: 6 | M18: 11490 | N18: 68940
I19: 2007-01-10 | J19: Pärnu | K19: Rohan | L19: 4 | M19: 5890 | N19: 23560
I20: 2007-01-10 | J20: Pärnu | K20: Elend | L20: 1 | M20: 12990 | N20: 12990
I21: 2007-01-10 | J21: Tartu | K21: Sauron | L21: 2 | M21: 3390 | N21: 6780
I22: 2007-01-11 | J22: Tartu | K22: Balrog | L22: 2 | M22: 4190 | N22: 8380
I23: 2007-01-11 | J23: Tallinn | K23: Marvin | L23: 1 | M23: 5990 | N23: 5990
I24: 2007-01-11 | J24: Valga | K24: Aragorn | L24: 1 | M24: 4990 | N24: 4990
I25: 2007-01-14 | J25: Tartu | K25: Frodo | L25: 4 | M25: 13300 | N25: 53200
I26: 2007-01-14 | J26: Pärnu | K26: Gandalf | L26: 3 | M26: 8490 | N26: 25470
I27: 2007-01-14 | J27: Valga | K27: Kalvar | L27: 2 | M27: 6990 | N27: 13980
I28: 2007-01-16 | J28: Tallinn | K28: Arven | L28: 5 | M28: 3690 | N28: 18450
B29: Linn | D29: Linn | E29: Arvuti | G29: Maksumus | I29: 2007-01-17 | J29: Tallinn | K29: Kalvar | L29: 7 | M29: 6990 | N29: 48930
B30: Pärnu | D30: Tallinn | E30: Frodo | G30: >20000 | I30: 2007-01-17 | J30: Tartu | K30: Aragorn | L30: 3 | M30: 4990 | N30: 14970
I31: 2007-01-18 | J31: Tallinn | K31: Aragorn | L31: 1 | M31: 4990 | N31: 4990
B32: Linn | D32: Linn | E32: Arvuti | F32: Arv | I32: 2007-01-18 | J32: Pärnu | K32: Eldar | L32: 1 | M32: 4650 | N32: 4650
B33: Tallinn | D33: Tallinn | E33: Balrog | F33: >1 | I33: 2007-01-19 | J33: Võru | K33: Elend | L33: 5 | M33: 12990 | N33: 64950
B34: Tartu | D34: Tartu | E34: Balrog | F34: >1 | I34: 2007-01-19 | J34: Tallinn | K34: Faram | L34: 3 | M34: 5990 | N34: 17970
B35: Võru | I35: 2007-01-19 | J35: Tartu | K35: Kalvar | L35: 1 | M35: 6990 | N35: 6990
D36: Arvuti | E36: Kuupäev | F36: Kuupäev | I36: 2007-01-20 | J36: Tallinn | K36: Elend | L36: 2 | M36: 12990 | N36: 25980
D37: Aragorn | E37: >=10.01.07 | F37: <=20.01.07 | I37: 2007-01-20 | J37: Võru | K37: Sauron | L37: 3 | M37: 3390 | N37: 10170
I38: 2007-01-21 | J38: Pärnu | K38: Arven | L38: 1 | M38: 3690 | N38: 3690
I39: 2007-01-25 | J39: Võru | K39: Sauron | L39: 1 | M39: 3390 | N39: 3390
I40: 2007-01-26 | J40: Pärnu | K40: Gandalf | L40: 2 | M40: 8490 | N40: 16980

Sheet Filter_AM
B3: Kuupäev | C3: Linn | D3: Arvuti | E3: Arv | F3: Hind | G3: Maksumus
J4: Väljad Kuupäev, Linn, Arv kirjetest, kus Arvuti on Frodo ja
B5: kirjed, kus linn on Tallinn või Tartu | J5: Kuupäev on vahemikus 01.01.07 kuni 15.01.07
B6: Linn | J6: Arvuti | K6: Kuupäev | L6: Kuupäev
B7: Tallinn | J7: Frodo | K7: >=01.01.07 | L7: <=15.01.07
B8: Tartu
D9: Kokku | E9: =SUM(E12:E29) -> 53 | G9: =SUM(G12:G29) -> 400850 | J9: Kuupäev | K9: Linn | L9: Arv
J10: 2007-01-02 | K10: Tallinn | L10: 2
B11: Kuupäev | C11: Linn | D11: Arvuti | E11: Arv | F11: Hind | G11: Maksumus | J11: 2007-01-07 | K11: Valga | L11: 1
B12: 2007-01-10 | C12: Tartu | D12: Sauron | E12: 2 | F12: 3390 | G12: 6780 | J12: 2007-01-14 | K12: Tartu | L12: 4
B13: 2007-01-11 | C13: Tartu | D13: Balrog | E13: 2 | F13: 4190 | G13: 8380
B14: 2007-01-03 | C14: Tallinn | D14: Aragorn | E14: 2 | F14: 4990 | G14: 9980
B15: 2007-01-03 | C15: Tallinn | D15: Balrog | E15: 3 | F15: 4190 | G15: 12570
B16: 2007-01-09 | C16: Tallinn | D16: Grimbold | E16: 6 | F16: 11490 | G16: 68940
B17: 2007-01-14 | C17: Tartu | D17: Frodo | E17: 4 | F17: 13300 | G17: 53200
B18: 2007-01-04 | C18: Tallinn | D18: Eldar | E18: 3 | F18: 4650 | G18: 13950
B19: 2007-01-17 | C19: Tartu | D19: Aragorn | E19: 3 | F19: 4990 | G19: 14970
B20: 2007-01-07 | C20: Tallinn | D20: Faram | E20: 1 | F20: 5990 | G20: 5990
B21: 2007-01-19 | C21: Tartu | D21: Kalvar | E21: 1 | F21: 6990 | G21: 6990
B22: 2007-01-02 | C22: Tallinn | D22: Frodo | E22: 2 | F22: 13300 | G22: 26600
B23: 2007-01-11 | C23: Tallinn | D23: Frodo | E23: 1 | F23: 13300 | G23: 13300
B24: 2007-01-04 | C24: Tartu | D24: Balrog | E24: 5 | F24: 4190 | G24: 20950
B25: 2007-01-16 | C25: Tallinn | D25: Arven | E25: 5 | F25: 3690 | G25: 18450
B26: 2007-01-17 | C26: Tallinn | D26: Kalvar | E26: 7 | F26: 6990 | G26: 48930
B27: 2007-01-18 | C27: Tallinn | D27: Aragorn | E27: 1 | F27: 4990 | G27: 4990
B28: 2007-01-19 | C28: Tallinn | D28: Frodo | E28: 3 | F28: 13300 | G28: 39900
B29: 2007-01-20 | C29: Tallinn | D29: Elend | E29: 2 | F29: 12990 | G29: 25980
B31: väljad Kuupäev, Arvuti ja Maksumus kirjetest, kus Linn on Tallinn ja Arvuti on Balrog
B32: Linn | C32: Arvuti
B33: Tallinn | C33: Aragorn
B35: Kuupäev | C35: Arvuti | D35: Maksumus
B36: 2007-01-03 | C36: Aragorn | D36: 9980
B37: 2007-01-18 | C37: Aragorn | D37: 4990

Sheet Filter_PM_D
B2: Demo. Demo. Demo
B3: Puidu müük. Väljavõtete tegemine maakondade ja puidu liikide lõikes
B5: Maakond | C5: puidu liik | J5: =DSUM(PM, "P_kogus", Kriteerium) -> 474 | K5: =DSUM(PM, "P_maks",Kriteerium) -> 336960
B6: P_maa | C6: P_liik
B7: Pärnu | C7: kuusk
E9: Kokku: | F9: =SUM(F13:F203) -> 474 | G9: =SUM(G13:G203) -> 336960
B11: Kuupäev | C11: Arve | D11: Müüja | E11: Ostja | F11: Kogus | G11: Maksumus
B12: P_kuupäev | C12: P_arve | D12: P_müüja | E12: P_ostja | F12: P_kogus | G12: P_maks
B13: 2007-01-31 | C13: P028 | D13: Ilves | E13: Kask | F13: 40 | G13: 32000
B14: 2007-03-31 | C14: P073 | D14: Hunt | E14: Kaun | F14: 21 | G14: 16800
B15: 2007-04-02 | C15: P076 | D15: Siil | E15: Kask | F15: 14 | G15: 10080
B16: 2007-04-21 | C16: P095 | D16: Karu | E16: Haab | F16: 62 | G16: 49600
B17: 2007-05-14 | C17: P117 | D17: Jänes | E17: Kaun | F17: 55 | G17: 35200
B18: 2007-05-22 | C18: P127 | D18: Ilves | E18: Kaasik | F18: 74 | G18: 53280
B19: 2007-07-05 | C19: P153 | D19: Põder | E19: Kaun | F19: 56 | G19: 35840
B20: 2007-07-20 | C20: P165 | D20: Karu | E20: Kaun | F20: 26 | G20: 16640
B21: 2007-09-09 | C21: P205 | D21: Jänes | E21: Haab | F21: 69 | G21: 44160
B22: 2007-10-31 | C22: P253 | D22: Ilves | E22: Juur | F22: 28 | G22: 20160
B23: 2007-11-30 | C23: P272 | D23: Ilves | E23: Kask | F23: 29 | G23: 23200

Sheet Kokku

Sheet Vahekokku
J1: Harjutustabelid
J2: töötajad | K2: puidu müük
I4: Arvutite müükide arvestus
I6: Kuupäev | J6: Linn | K6: Arvuti | L6: Arv | M6: Hind | N6: Maksumus
I7: 2007-01-21 | J7: Pärnu | K7: Arven | L7: 1 | M7: 3690 | N7: 3690
I8: 2007-01-07 | J8: Pärnu | K8: Eldar | L8: 3 | M8: 4650 | N8: 13950
I9: 2007-01-18 | J9: Pärnu | K9: Eldar | L9: 1 | M9: 4650 | N9: 4650
I10: 2007-01-10 | J10: Pärnu | K10: Elend | L10: 1 | M10: 12990 | N10: 12990
I11: 2007-01-14 | J11: Pärnu | K11: Gandalf | L11: 3 | M11: 8490 | N11: 25470
I12: 2007-01-26 | J12: Pärnu | K12: Gandalf | L12: 2 | M12: 8490 | N12: 16980
I13: 2007-01-10 | J13: Pärnu | K13: Rohan | L13: 4 | M13: 5890 | N13: 23560
I14: 2007-01-03 | J14: Tallinn | K14: Aragorn | L14: 2 | M14: 4990 | N14: 9980
I15: 2007-01-18 | J15: Tallinn | K15: Aragorn | L15: 1 | M15: 4990 | N15: 4990
I16: 2007-01-16 | J16: Tallinn | K16: Arven | L16: 5 | M16: 3690 | N16: 18450
I17: 2007-01-03 | J17: Tallinn | K17: Balrog | L17: 3 | M17: 4190 | N17: 12570
I18: 2007-01-17 | J18: Tallinn | K18: Balrog | L18: 7 | M18: 6990 | N18: 48930
I19: 2007-01-04 | J19: Tallinn | K19: Eldar | L19: 3 | M19: 4650 | N19: 13950
I20: 2007-01-20 | J20: Tallinn | K20: Elend | L20: 2 | M20: 12990 | N20: 25980
I21: 2007-01-07 | J21: Tallinn | K21: Faram | L21: 1 | M21: 5990 | N21: 5990
I22: 2007-01-02 | J22: Tallinn | K22: Frodo | L22: 2 | M22: 13300 | N22: 26600
I23: 2007-01-11 | J23: Tallinn | K23: Frodo | L23: 1 | M23: 13300 | N23: 13300
I24: 2007-01-19 | J24: Tallinn | K24: Frodo | L24: 3 | M24: 13300 | N24: 39900
I25: 2007-01-09 | J25: Tallinn | K25: Grimbold | L25: 6 | M25: 11490 | N25: 68940
I26: 2007-01-17 | J26: Tartu | K26: Aragorn | L26: 3 | M26: 4990 | N26: 14970
I27: 2007-01-04 | J27: Tartu | K27: Balrog | L27: 5 | M27: 4190 | N27: 20950
I28: 2007-01-11 | J28: Tartu | K28: Balrog | L28: 2 | M28: 4190 | N28: 8380
I29: 2007-01-14 | J29: Tartu | K29: Frodo | L29: 4 | M29: 13300 | N29: 53200
I30: 2007-01-19 | J30: Tartu | K30: Kalvar | L30: 1 | M30: 6990 | N30: 6990
I31: 2007-01-10 | J31: Tartu | K31: Sauron | L31: 2 | M31: 3390 | N31: 6780
I32: 2007-01-11 | J32: Valga | K32: Aragorn | L32: 1 | M32: 4990 | N32: 4990
I33: 2007-01-02 | J33: Valga | K33: Balrog | L33: 1 | M33: 4190 | N33: 4190
I34: 2007-01-07 | J34: Valga | K34: Balrog | L34: 6 | M34: 4190 | N34: 25140
I35: 2007-01-07 | J35: Valga | K35: Frodo | L35: 1 | M35: 13300 | N35: 13300
I36: 2007-01-14 | J36: Valga | K36: Kalvar | L36: 2 | M36: 6990 | N36: 13980
I37: 2007-01-19 | J37: Võru | K37: Elend | L37: 5 | M37: 12990 | N37: 64950
I38: 2007-01-03 | J38: Võru | K38: Gandalf | L38: 2 | M38: 8490 | N38: 16980
I39: 2007-01-20 | J39: Võru | K39: Sauron | L39: 3 | M39: 3390 | N39: 10170
I40: 2007-01-25 | J40: Võru | K40: Sauron | L40: 1 | M40: 3390 | N40: 3390

Sheet Risttabelid
J1: Harjutustabelid:
J2: Töötajad | K2: Puidu müük
I4: Arvutite müükide arvestus
I6: Kuupäev | J6: Linn | K6: Arvuti | L6: Arv | M6: Hind | N6: Maksumus
I7: 2007-01-02 | J7: Valga | K7: Balrog | L7: 1 | M7: 4190 | N7: 4190
I8: 2007-01-03 | J8: Võru | K8: Gandalf | L8: 2 | M8: 8490 | N8: 16980
I9: 2007-01-03 | J9: Tallinn | K9: Aragorn | L9: 2 | M9: 4990 | N9: 9980
I10: 2007-01-03 | J10: Tallinn | K10: Balrog | L10: 3 | M10: 4190 | N10: 12570
I11: 2007-01-09 | J11: Tallinn | K11: Grimbold | L11: 6 | M11: 11490 | N11: 68940
I12: 2007-01-19 | J12: Võru | K12: Elend | L12: 5 | M12: 12990 | N12: 64950
I13: 2007-01-04 | J13: Tallinn | K13: Eldar | L13: 3 | M13: 4650 | N13: 13950
I14: 2007-01-10 | J14: Tartu | K14: Sauron | L14: 2 | M14: 3390 | N14: 6780
I15: 2007-01-07 | J15: Pärnu | K15: Eldar | L15: 3 | M15: 4650 | N15: 13950
I16: 2007-01-07 | J16: Tallinn | K16: Faram | L16: 1 | M16: 5990 | N16: 5990
I17: 2007-01-26 | J17: Pärnu | K17: Gandalf | L17: 2 | M17: 8490 | N17: 16980
I18: 2007-01-11 | J18: Tartu | K18: Balrog | L18: 2 | M18: 4190 | N18: 8380
I19: 2007-01-10 | J19: Pärnu | K19: Elend | L19: 1 | M19: 12990 | N19: 12990
I20: 2007-01-02 | J20: Tallinn | K20: Frodo | L20: 2 | M20: 13300 | N20: 26600
I21: 2007-01-11 | J21: Tallinn | K21: Frodo | L21: 1 | M21: 13300 | N21: 13300
I22: 2007-01-11 | J22: Valga | K22: Aragorn | L22: 1 | M22: 4990 | N22: 4990
I23: 2007-01-14 | J23: Tartu | K23: Frodo | L23: 4 | M23: 13300 | N23: 53200
I24: 2007-01-16 | J24: Tallinn | K24: Arven | L24: 5 | M24: 3690 | N24: 18450
I25: 2007-01-17 | J25: Tallinn | K25: Balrog | L25: 7 | M25: 6990 | N25: 48930
I26: 2007-01-14 | J26: Pärnu | K26: Gandalf | L26: 3 | M26: 8490 | N26: 25470
I27: 2007-01-14 | J27: Valga | K27: Kalvar | L27: 2 | M27: 6990 | N27: 13980
I28: 2007-01-17 | J28: Tartu | K28: Aragorn | L28: 3 | M28: 4990 | N28: 14970
I29: 2007-01-18 | J29: Tallinn | K29: Aragorn | L29: 1 | M29: 4990 | N29: 4990
I30: 2007-01-07 | J30: Valga | K30: Balrog | L30: 6 | M30: 4190 | N30: 25140
I31: 2007-01-19 | J31: Tallinn | K31: Frodo | L31: 3 | M31: 13300 | N31: 39900
I32: 2007-01-18 | J32: Pärnu | K32: Eldar | L32: 1 | M32: 4650 | N32: 4650
I33: 2007-01-10 | J33: Pärnu | K33: Rohan | L33: 4 | M33: 5890 | N33: 23560
I34: 2007-01-19 | J34: Tartu | K34: Kalvar | L34: 1 | M34: 6990 | N34: 6990
I35: 2007-01-20 | J35: Tallinn | K35: Elend | L35: 2 | M35: 12990 | N35: 25980
I36: 2007-01-07 | J36: Valga | K36: Frodo | L36: 1 | M36: 13300 | N36: 13300
I37: 2007-01-20 | J37: Võru | K37: Sauron | L37: 3 | M37: 3390 | N37: 10170
I38: 2007-01-21 | J38: Pärnu | K38: Arven | L38: 1 | M38: 3690 | N38: 3690
I39: 2007-01-25 | J39: Võru | K39: Sauron | L39: 1 | M39: 3390 | N39: 3390
I40: 2007-01-04 | J40: Tartu | K40: Balrog | L40: 5 | M40: 4190 | N40: 20950

Sheet Rist_A1
B3: Sum of Maksumus
B4: Linn | C4: Total
B5: Pärnu | C5: 101290
B6: Tallinn | C6: 289580
B7: Tartu | C7: 111270
B8: Valga | C8: 61600
B9: Võru | C9: 95490
B10: Grand Total | C10: 659230
B13: Sum of Maksumus
B14: Arvuti | C14: Total
B15: Aragorn | C15: 34930
B16: Arven | C16: 22140
B17: Balrog | C17: 120160
B18: Eldar | C18: 32550
B19: Elend | C19: 103920
B20: Faram | C20: 5990
B21: Frodo | C21: 146300
B22: Gandalf | C22: 59430
B23: Grimbold | C23: 68940
B24: Kalvar | C24: 20970
B25: Rohan | C25: 23560
B26: Sauron | C26: 20340
B27: Grand Total | C27: 659230
B30: Sum of Arv
B31: Kuupäev | C31: Total
B32: 2007-01-02 | C32: 3
B33: 2007-01-03 | C33: 7
B34: 2007-01-04 | C34: 8
B35: 2007-01-07 | C35: 11
B36: 2007-01-09 | C36: 6
B37: 2007-01-10 | C37: 7
B38: 2007-01-11 | C38: 4
B39: 2007-01-14 | C39: 9
B40: 2007-01-16 | C40: 5
B41: 2007-01-17 | C41: 10
B42: 2007-01-18 | C42: 2
B43: 2007-01-19 | C43: 9
B44: 2007-01-20 | C44: 5
B45: 2007-01-21 | C45: 1
B46: 2007-01-25 | C46: 1
B47: 2007-01-26 | C47: 2
B48: Grand Total | C48: 90

Sheet Rist_A2
C3: Data
B4: Arvuti | C4: Sum of Arv | D4: Sum of Maksumus
B5: Aragorn | C5: 7 | D5: 34930
B6: Arven | C6: 6 | D6: 22140
B7: Balrog | C7: 24 | D7: 120160
B8: Eldar | C8: 7 | D8: 32550
B9: Elend | C9: 8 | D9: 103920
B10: Faram | C10: 1 | D10: 5990
B11: Frodo | C11: 11 | D11: 146300
B12: Gandalf | C12: 7 | D12: 59430
B13: Grimbold | C13: 6 | D13: 68940
B14: Kalvar | C14: 3 | D14: 20970
B15: Rohan | C15: 4 | D15: 23560
B16: Sauron | C16: 6 | D16: 20340
B17: Grand Total | C17: 90 | D17: 659230
B21: Sum of Maksumus | C21: Linn
B22: Arvuti | C22: Pärnu | D22: Tallinn | E22: Tartu | F22: Valga | G22: Võru | H22: Grand Total
B23: Aragorn | D23: 14970 | E23: 14970 | F23: 4990 | H23: 34930
B24: Arven | C24: 3690 | D24: 18450 | H24: 22140
B25: Balrog | D25: 61500 | E25: 29330 | F25: 29330 | H25: 120160
B26: Eldar | C26: 18600 | D26: 13950 | H26: 32550
B27: Elend | C27: 12990 | D27: 25980 | G27: 64950 | H27: 103920
B28: Faram | D28: 5990 | H28: 5990
B29: Frodo | D29: 79800 | E29: 53200 | F29: 13300 | H29: 146300
B30: Gandalf | C30: 42450 | G30: 16980 | H30: 59430
B31: Grimbold | D31: 68940 | H31: 68940
B32: Kalvar | E32: 6990 | F32: 13980 | H32: 20970
B33: Rohan | C33: 23560 | H33: 23560
B34: Sauron | E34: 6780 | G34: 13560 | H34: 20340
B35: Grand Total | C35: 101290 | D35: 289580 | E35: 111270 | F35: 61600 | G35: 95490 | H35: 659230

Sheet SumIF
J1: Harjutustabel | L1: Puidu müük
B3: Funktsioonid COUNTIF ja SUMIF | J3: Arvutite müükide arvestus
J5: A_Kuupäev | K5: A_Linn | L5: A_Arvuti | M5: A_Arv | N5: A_Hind | O5: A_Maksumus | P5: Prots
J6: 2007-01-02 | K6: Tallinn | L6: Frodo | M6: 2 | N6: 13300 | O6: 26600 | P6: =VLOOKUP(L6, Arvutid,2,0) -> AMD Athlon64
J7: 2007-01-02 | K7: Valga | L7: Balrog | M7: 1 | N7: 4190 | O7: 4190 | P7: Intel Celeron
J8: 2007-01-03 | K8: Tallinn | L8: Aragorn | M8: 2 | N8: 4990 | O8: 9980 | P8: AMD Athlon64
J9: 2007-01-03 | K9: Tallinn | L9: Balrog | M9: 3 | N9: 4190 | O9: 12570 | P9: Intel Celeron
J10: 2007-01-03 | K10: Võru | L10: Gandalf | M10: 2 | N10: 8490 | O10: 16980 | P10: Intel Xeon
J11: 2007-01-04 | K11: Tallinn | L11: Eldar | M11: 3 | N11: 4650 | O11: 13950 | P11: Intel Xeon
J12: 2007-01-04 | K12: Tartu | L12: Balrog | M12: 5 | N12: 4190 | O12: 20950 | P12: Intel Celeron
J13: 2007-01-07 | K13: Pärnu | L13: Eldar | M13: 3 | N13: 4650 | O13: 13950 | P13: Intel Xeon
J14: 2007-01-07 | K14: Tallinn | L14: Faram | M14: 1 | N14: 5990 | O14: 5990 | P14: AMD Athlon64
J15: 2007-01-07 | K15: Valga | L15: Balrog | M15: 6 | N15: 4190 | O15: 25140 | P15: Intel Celeron
J16: 2007-01-07 | K16: Valga | L16: Frodo | M16: 1 | N16: 13300 | O16: 13300 | P16: AMD Athlon64
J17: 2007-01-09 | K17: Tallinn | L17: Grimbold | M17: 6 | N17: 11490 | O17: 68940 | P17: Intel Core 2
J18: 2007-01-10 | K18: Pärnu | L18: Elend | M18: 1 | N18: 12990 | O18: 12990 | P18: Intel Celeron
J19: 2007-01-10 | K19: Pärnu | L19: Rohan | M19: 4 | N19: 5890 | O19: 23560 | P19: AMD Athlon64
J20: 2007-01-10 | K20: Tartu | L20: Sauron | M20: 2 | N20: 3390 | O20: 6780 | P20: Intel Xeon
J21: 2007-01-11 | K21: Tallinn | L21: Frodo | M21: 1 | N21: 13300 | O21: 13300 | P21: AMD Athlon64
B22: Arvud | C22: arv | J22: 2007-01-11 | K22: Tartu | L22: Balrog | M22: 2 | N22: 4190 | O22: 8380 | P22: Intel Celeron
B23: 23 | C23: 21 | D23: =COUNTIF(Arvud, 13) -> 3 | E23: Mitu korda esineb loetelus arv 13 | J23: 2007-01-11 | K23: Valga | L23: Aragorn | M23: 1 | N23: 4990 | O23: 4990 | P23: AMD Athlon64
B24: -45 | D24: =COUNTIF(Arvud, arv) -> 2 | E24: Mitu korda esineb loetelus lahtris arv olev arv | J24: 2007-01-14 | K24: Pärnu | L24: Gandalf | M24: 3 | N24: 8490 | O24: 25470 | P24: Intel Xeon
B25: 13 | D25: =SUMIF(Arvud, ">0") -> 122 | E25: Positiivsete arvude summa | J25: 2007-01-14 | K25: Tartu | L25: Frodo | M25: 4 | N25: 13300 | O25: 53200 | P25: AMD Athlon64
B26: 18 | D26: =COUNTIF(Arvud, ">0") -> 7 | E26: Positiivsete arvude arv | J26: 2007-01-14 | K26: Valga | L26: Kalvar | M26: 2 | N26: 6990 | O26: 13980 | P26: Intel Xeon
B27: 21 | D27: =SUMIF(Arvud, ">0") / COUNTIF(Arvud, ">0") -> 17.42857143 | E27: Positiivsete arvude aritmeetiline keskmine | J27: 2007-01-16 | K27: Tallinn | L27: Arven | M27: 5 | N27: 3690 | O27: 18450 | P27: Intel Core 2
B28: 13 | D28: =COUNTIF(Arvud, 21) -> 2 | E28: Mitu korda esineb loetelus arv 21 | J28: 2007-01-17 | K28: Tallinn | L28: Balrog | M28: 7 | N28: 6990 | O28: 48930 | P28: Intel Celeron
B29: -16 | D29: =SUMIF(Arvud, "<0") -> -61 | E29: Negatiivsete arvude summa | J29: 2007-01-17 | K29: Tartu | L29: Aragorn | M29: 3 | N29: 4990 | O29: 14970 | P29: AMD Athlon64
B30: 21 | D30: =COUNTIF(Arvud, "<0") -> 2 | E30: Negatiivsete arvude arv | J30: 2007-01-18 | K30: Pärnu | L30: Eldar | M30: 1 | N30: 4650 | O30: 4650 | P30: Intel Xeon
B31: 13 | D31: =SUMIF(Arvud, "<0") / COUNTIF(Arvud, "<0") -> -30.5 | E31: Negatiivsete arvude aritmeetiline keskmine | J31: 2007-01-18 | K31: Tallinn | L31: Aragorn | M31: 1 | N31: 4990 | O31: 4990 | P31: AMD Athlon64
J32: 2007-01-19 | K32: Tallinn | L32: Frodo | M32: 3 | N32: 13300 | O32: 39900 | P32: AMD Athlon64
J33: 2007-01-19 | K33: Tartu | L33: Kalvar | M33: 1 | N33: 6990 | O33: 6990 | P33: Intel Xeon
J34: 2007-01-19 | K34: Võru | L34: Elend | M34: 5 | N34: 12990 | O34: 64950 | P34: Intel Celeron
J35: 2007-01-20 | K35: Tallinn | L35: Elend | M35: 2 | N35: 12990 | O35: 25980 | P35: Intel Celeron
J36: 2007-01-20 | K36: Võru | L36: Sauron | M36: 3 | N36: 3390 | O36: 10170 | P36: Intel Xeon
J37: 2007-01-21 | K37: Pärnu | L37: Arven | M37: 1 | N37: 3690 | O37: 3690 | P37: Intel Core 2
J38: 2007-01-25 | K38: Võru | L38: Sauron | M38: 1 | N38: 3390 | O38: 3390 | P38: Intel Xeon
J39: 2007-01-26 | K39: Pärnu | L39: Gandalf | M39: 2 | N39: 8490 | O39: 16980 | P39: Intel Xeon

Sheet Sheet2
C3: suurem | D3: kesk | F3: tt | H3: Prots
C4: =SumIF!N6>kesk -> TRUE | D4: =AVERAGE(A_Hind) -> 7285 | F4: =VLOOKUP(SumIF!L6, Arvutid, 2,0) = prots -> FALSE | H4: Intel Xeon
C9: A_Kuupäev | D9: A_Linn | E9: A_Arvuti | F9: A_Arv | G9: A_Hind | H9: A_Maksumus | J9: A_Kuupäev | K9: A_Linn | L9: A_Arvuti | M9: A_Arv | N9: A_Hind | O9: A_Maksumus | P9: Prots
C10: 2007-01-02 | D10: Tallinn | E10: Frodo | F10: 2 | G10: 13300 | H10: 26600 | J10: 2007-01-03 | K10: Võru | L10: Gandalf | M10: 2 | N10: 8490 | O10: 16980 | P10: Intel Xeon
C11: 2007-01-03 | D11: Võru | E11: Gandalf | F11: 2 | G11: 8490 | H11: 16980 | J11: 2007-01-04 | K11: Tallinn | L11: Eldar | M11: 3 | N11: 4650 | O11: 13950 | P11: Intel Xeon
C12: 2007-01-07 | D12: Valga | E12: Frodo | F12: 1 | G12: 13300 | H12: 13300 | J12: 2007-01-07 | K12: Pärnu | L12: Eldar | M12: 3 | N12: 4650 | O12: 13950 | P12: Intel Xeon
C13: 2007-01-09 | D13: Tallinn | E13: Grimbold | F13: 6 | G13: 11490 | H13: 68940 | J13: 2007-01-10 | K13: Tartu | L13: Sauron | M13: 2 | N13: 3390 | O13: 6780 | P13: Intel Xeon
C14: 2007-01-10 | D14: Pärnu | E14: Elend | F14: 1 | G14: 12990 | H14: 12990 | J14: 2007-01-14 | K14: Pärnu | L14: Gandalf | M14: 3 | N14: 8490 | O14: 25470 | P14: Intel Xeon
C15: 2007-01-11 | D15: Tallinn | E15: Frodo | F15: 1 | G15: 13300 | H15: 13300 | J15: 2007-01-14 | K15: Valga | L15: Kalvar | M15: 2 | N15: 6990 | O15: 13980 | P15: Intel Xeon
C16: 2007-01-14 | D16: Pärnu | E16: Gandalf | F16: 3 | G16: 8490 | H16: 25470 | J16: 2007-01-18 | K16: Pärnu | L16: Eldar | M16: 1 | N16: 4650 | O16: 4650 | P16: Intel Xeon
C17: 2007-01-14 | D17: Tartu | E17: Frodo | F17: 4 | G17: 13300 | H17: 53200 | J17: 2007-01-19 | K17: Tartu | L17: Kalvar | M17: 1 | N17: 6990 | O17: 6990 | P17: Intel Xeon
C18: 2007-01-19 | D18: Tallinn | E18: Frodo | F18: 3 | G18: 13300 | H18: 39900 | J18: 2007-01-20 | K18: Võru | L18: Sauron | M18: 3 | N18: 3390 | O18: 10170 | P18: Intel Xeon
C19: 2007-01-19 | D19: Võru | E19: Elend | F19: 5 | G19: 12990 | H19: 64950 | J19: 2007-01-25 | K19: Võru | L19: Sauron | M19: 1 | N19: 3390 | O19: 3390 | P19: Intel Xeon
C20: 2007-01-20 | D20: Tallinn | E20: Elend | F20: 2 | G20: 12990 | H20: 25980 | J20: 2007-01-26 | K20: Pärnu | L20: Gandalf | M20: 2 | N20: 8490 | O20: 16980 | P20: Intel Xeon
C21: 2007-01-26 | D21: Pärnu | E21: Gandalf | F21: 2 | G21: 8490 | H21: 16980
C25: A_Kuupäev | D25: A_Linn | E25: A_Arvuti | F25: A_Arv | G25: A_Hind | H25: A_Maksumus
C26: 2007-01-03 | D26: Võru | E26: Gandalf | F26: 2 | G26: 8490 | H26: 16980
C27: 2007-01-04 | D27: Tallinn | E27: Eldar | F27: 3 | G27: 4650 | H27: 13950
C28: 2007-01-07 | D28: Pärnu | E28: Eldar | F28: 3 | G28: 4650 | H28: 13950
C29: 2007-01-10 | D29: Tartu | E29: Sauron | F29: 2 | G29: 3390 | H29: 6780
C30: 2007-01-14 | D30: Pärnu | E30: Gandalf | F30: 3 | G30: 8490 | H30: 25470
C31: 2007-01-14 | D31: Valga | E31: Kalvar | F31: 2 | G31: 6990 | H31: 13980
C32: 2007-01-18 | D32: Pärnu | E32: Eldar | F32: 1 | G32: 4650 | H32: 4650
C33: 2007-01-19 | D33: Tartu | E33: Kalvar | F33: 1 | G33: 6990 | H33: 6990
C34: 2007-01-20 | D34: Võru | E34: Sauron | F34: 3 | G34: 3390 | H34: 10170
C35: 2007-01-25 | D35: Võru | E35: Sauron | F35: 1 | G35: 3390 | H35: 3390
C36: 2007-01-26 | D36: Pärnu | E36: Gandalf | F36: 2 | G36: 8490 | H36: 16980

Sheet SumIF (2)
J1: Harjutustabel | L1: Puidu müük
J2: üle | O2: kesk
J3: =N10>$O$3 -> TRUE | O3: =AVERAGE(A_Hind) -> 7285
B7: Funktsioonid COUNTIF ja SUMIF | J7: Arvutite müükide arvestus
J9: A_Kuupäev | K9: A_Linn | L9: A_Arvuti | M9: A_Arv | N9: A_Hind | O9: A_Maksumus
J10: 2007-01-02 | K10: Tallinn | L10: Frodo | M10: 2 | N10: 13300 | O10: 26600
J11: 2007-01-02 | K11: Valga | L11: Balrog | M11: 1 | N11: 4190 | O11: 4190
J12: 2007-01-03 | K12: Tallinn | L12: Aragorn | M12: 2 | N12: 4990 | O12: 9980
J13: 2007-01-03 | K13: Tallinn | L13: Balrog | M13: 3 | N13: 4190 | O13: 12570
J14: 2007-01-03 | K14: Võru | L14: Gandalf | M14: 2 | N14: 8490 | O14: 16980
J15: 2007-01-04 | K15: Tallinn | L15: Eldar | M15: 3 | N15: 4650 | O15: 13950
J16: 2007-01-04 | K16: Tartu | L16: Balrog | M16: 5 | N16: 4190 | O16: 20950
J17: 2007-01-07 | K17: Pärnu | L17: Eldar | M17: 3 | N17: 4650 | O17: 13950
J18: 2007-01-07 | K18: Tallinn | L18: Faram | M18: 1 | N18: 5990 | O18: 5990
J19: 2007-01-07 | K19: Valga | L19: Balrog | M19: 6 | N19: 4190 | O19: 25140
J20: 2007-01-07 | K20: Valga | L20: Frodo | M20: 1 | N20: 13300 | O20: 13300
J21: 2007-01-09 | K21: Tallinn | L21: Grimbold | M21: 6 | N21: 11490 | O21: 68940
J22: 2007-01-10 | K22: Pärnu | L22: Elend | M22: 1 | N22: 12990 | O22: 12990
J23: 2007-01-10 | K23: Pärnu | L23: Rohan | M23: 4 | N23: 5890 | O23: 23560
J24: 2007-01-10 | K24: Tartu | L24: Sauron | M24: 2 | N24: 3390 | O24: 6780
J25: 2007-01-11 | K25: Tallinn | L25: Frodo | M25: 1 | N25: 13300 | O25: 13300
B26: Arvud | C26: arv | J26: 2007-01-11 | K26: Tartu | L26: Balrog | M26: 2 | N26: 4190 | O26: 8380
B27: 23 | C27: 21 | D27: =COUNTIF(Arvud, 13) -> 3 | E27: Mitu korda esineb loetelus arv 13 | J27: 2007-01-11 | K27: Valga | L27: Aragorn | M27: 1 | N27: 4990 | O27: 4990
B28: -45 | D28: =COUNTIF(Arvud, arv) -> 2 | E28: Mitu korda esineb loetelus lahtris arv olev arv | J28: 2007-01-14 | K28: Pärnu | L28: Gandalf | M28: 3 | N28: 8490 | O28: 25470
B29: 13 | D29: =SUMIF(Arvud, ">0") -> 122 | E29: Positiivsete arvude summa | J29: 2007-01-14 | K29: Tartu | L29: Frodo | M29: 4 | N29: 13300 | O29: 53200
B30: 18 | D30: =COUNTIF(Arvud, ">0") -> 7 | E30: Positiivsete arvude arv | J30: 2007-01-14 | K30: Valga | L30: Kalvar | M30: 2 | N30: 6990 | O30: 13980
B31: 21 | D31: =SUMIF(Arvud, ">0") / COUNTIF(Arvud, ">0") -> 17.42857143 | E31: Positiivsete arvude aritmeetiline keskmine | J31: 2007-01-16 | K31: Tallinn | L31: Arven | M31: 5 | N31: 3690 | O31: 18450
B32: 13 | D32: =COUNTIF(Arvud, 21) -> 2 | E32: Mitu korda esineb loetelus arv 21 | J32: 2007-01-17 | K32: Tallinn | L32: Balrog | M32: 7 | N32: 6990 | O32: 48930
B33: -16 | D33: =SUMIF(Arvud, "<0") -> -61 | E33: Negatiivsete arvude summa | J33: 2007-01-17 | K33: Tartu | L33: Aragorn | M33: 3 | N33: 4990 | O33: 14970
B34: 21 | D34: =COUNTIF(Arvud, "<0") -> 2 | E34: Negatiivsete arvude arv | J34: 2007-01-18 | K34: Pärnu | L34: Eldar | M34: 1 | N34: 4650 | O34: 4650
B35: 13 | D35: =SUMIF(Arvud, "<0") / COUNTIF(Arvud, "<0") -> -30.5 | E35: Negatiivsete arvude aritmeetiline keskmine | J35: 2007-01-18 | K35: Tallinn | L35: Aragorn | M35: 1 | N35: 4990 | O35: 4990
J36: 2007-01-19 | K36: Tallinn | L36: Frodo | M36: 3 | N36: 13300 | O36: 39900
J37: 2007-01-19 | K37: Tartu | L37: Kalvar | M37: 1 | N37: 6990 | O37: 6990
J38: 2007-01-19 | K38: Võru | L38: Elend | M38: 5 | N38: 12990 | O38: 64950
J39: 2007-01-20 | K39: Tallinn | L39: Elend | M39: 2 | N39: 12990 | O39: 25980
J40: 2007-01-20 | K40: Võru | L40: Sauron | M40: 3 | N40: 3390 | O40: 10170
J41: 2007-01-21 | K41: Pärnu | L41: Arven | M41: 1 | N41: 3690 | O41: 3690
J42: 2007-01-25 | K42: Võru | L42: Sauron | M42: 1 | N42: 3390 | O42: 3390
J43: 2007-01-26 | K43: Pärnu | L43: Gandalf | M43: 2 | N43: 8490 | O43: 16980

Sheet Sum_IF_AM
B3: Koond linnade lõikes
B5: Linn | C5: Arv | D5: Maksumus
B6: Tallinn | C6: =SUMIF(A_Linn, Linn, A_Arv) -> 36 | D6: =SUMIF(A_Linn, Linn, A_Maksumus) -> 289580
B7: Tartu | C7: =SUMIF(A_Linn, Linn, A_Arv) -> 17 | D7: =SUMIF(A_Linn, Linn, A_Maksumus) -> 111270
B8: Pärnu | C8: =SUMIF(A_Linn, Linn, A_Arv) -> 15 | D8: =SUMIF(A_Linn, Linn, A_Maksumus) -> 101290
B9: Valga | C9: =SUMIF(A_Linn, Linn, A_Arv) -> 11 | D9: =SUMIF(A_Linn, Linn, A_Maksumus) -> 61600
B10: Võru | C10: =SUMIF(A_Linn, Linn, A_Arv) -> 11 | D10: =SUMIF(A_Linn, Linn, A_Maksumus) -> 95490
B12: Kokku | C12: =SUM(C6:C11) -> 90 | D12: =SUM(D6:D11) -> 659230
B15: Arvuti | C15: Arv | D15: Maksumus
B16: Aragorn | C16: =SUMIF(A_Arvuti,Arvuti, A_Arv) -> 7 | D16: =SUMIF(A_Arvuti,Arvuti, A_Maksumus) -> 34930
B17: Arven | C17: 6 | D17: 22140
B18: Balrog | C18: 24 | D18: 120160
B19: Eldar | C19: 7 | D19: 32550
B20: Elend | C20: 8 | D20: 103920
B21: Faram | C21: 1 | D21: 5990
B22: Frodo | C22: 11 | D22: 146300
B23: Gandalf | C23: 7 | D23: 59430
B24: Grimbold | C24: 6 | D24: 68940
B25: Kalvar | C25: 3 | D25: 20970
B26: Marvin | C26: 0 | D26: 0
B27: Rohan | C27: 4 | D27: 23560
B28: Sauron | C28: 6 | D28: 20340
B30: Kokku | C30: =SUM(C16:C29) -> 90 | D30: =SUM(D16:D29) -> 659230
B33: Kuupäev | C33: Arv | D33: Maksumus
B34: 2007-01-01 | C34: =SUMIF(A_Kuupäev,Kuupäev, A_Arv) -> 0 | D34: =SUMIF(A_Kuupäev, Kuupäev, A_Maksumus) -> 0
B35: 2007-01-02 | C35: 3 | D35: 30790
B36: 2007-01-03 | C36: 7 | D36: 39530
B37: 2007-01-04 | C37: 8 | D37: 34900
B38: 2007-01-05 | C38: 0 | D38: 0
B39: 2007-01-06 | C39: 0 | D39: 0
B40: 2007-01-07 | C40: 11 | D40: 58380
B41: 2007-01-08 | C41: 0 | D41: 0
B42: 2007-01-09 | C42: 6 | D42: 68940
B43: 2007-01-10 | C43: 7 | D43: 43330
B44: 2007-01-11 | C44: 4 | D44: 26670
B45: 2007-01-12 | C45: 0 | D45: 0
B46: 2007-01-13 | C46: 0 | D46: 0
B47: 2007-01-14 | C47: 9 | D47: 92650
B48: 2007-01-15 | C48: 0 | D48: 0
B49: 2007-01-16 | C49: 5 | D49: 18450
B50: 2007-01-17 | C50: 10 | D50: 63900
B51: 2007-01-18 | C51: 2 | D51: 9640
B52: 2007-01-19 | C52: 9 | D52: 111840
B53: 2007-01-20 | C53: 5 | D53: 36150
B54: 2007-01-21 | C54: 1 | D54: 3690
B55: 2007-01-22 | C55: 0 | D55: 0
B56: 2007-01-23 | C56: 0 | D56: 0
B57: 2007-01-24 | C57: 0 | D57: 0
B58: 2007-01-25 | C58: 1 | D58: 3390
B59: 2007-01-26 | C59: 2 | D59: 16980
B60: 2007-01-27 | C60: 0 | D60: 0
B61: 2007-01-28 | C61: 0 | D61: 0
B62: 2007-01-29 | C62: 0 | D62: 0
B63: 2007-01-30 | C63: 0 | D63: 0
B64: 2007-01-31 | C64: 0 | D64: 0
B66: Kokku | C66: =SUM(C34:C65) -> 90 | D66: =SUM(D34:D65) -> 659230

Sheet D_Fumkts
I5: Müükide arvestus | L5: =SUBTOTAL(9, L8:L42) -> 90 | N5: =SUBTOTAL(9, N8:N42) -> 659230
I7: Kuupäev | J7: Linn | K7: Arvuti | L7: Arv | M7: Hind | N7: Maksumus
I8: 2007-01-02 | J8: Tallinn | K8: Frodo | L8: 2 | M8: 13300 | N8: 26600
I9: 2007-01-02 | J9: Valga | K9: Balrog | L9: 1 | M9: 4190 | N9: 4190
I10: 2007-01-03 | J10: Tallinn | K10: Aragorn | L10: 2 | M10: 4990 | N10: 9980
I11: 2007-01-03 | J11: Tallinn | K11: Balrog | L11: 3 | M11: 4190 | N11: 12570
I12: 2007-01-03 | J12: Võru | K12: Gandalf | L12: 2 | M12: 8490 | N12: 16980
I13: 2007-01-04 | J13: Tallinn | K13: Eldar | L13: 3 | M13: 4650 | N13: 13950
I14: 2007-01-04 | J14: Tartu | K14: Balrog | L14: 5 | M14: 4190 | N14: 20950
I15: 2007-01-07 | J15: Pärnu | K15: Eldar | L15: 3 | M15: 4650 | N15: 13950
I16: 2007-01-07 | J16: Tallinn | K16: Faram | L16: 1 | M16: 5990 | N16: 5990
I17: 2007-01-07 | J17: Valga | K17: Balrog | L17: 6 | M17: 4190 | N17: 25140
I18: 2007-01-07 | J18: Valga | K18: Frodo | L18: 1 | M18: 13300 | N18: 13300
I19: 2007-01-09 | J19: Tallinn | K19: Grimbold | L19: 6 | M19: 11490 | N19: 68940
I20: 2007-01-10 | J20: Pärnu | K20: Elend | L20: 1 | M20: 12990 | N20: 12990
I21: 2007-01-10 | J21: Pärnu | K21: Rohan | L21: 4 | M21: 5890 | N21: 23560
I22: 2007-01-10 | J22: Tartu | K22: Sauron | L22: 2 | M22: 3390 | N22: 6780
B23: Antud linnades müüdud arvutite arv ja maksumus | I23: 2007-01-11 | J23: Tallinn | K23: Frodo | L23: 1 | M23: 13300 | N23: 13300
B24: Linn | F24: Arv | G24: Maksumus | I24: 2007-01-11 | J24: Tartu | K24: Balrog | L24: 2 | M24: 4190 | N24: 8380
B25: Tallinn | F25: =DSUM(AM_1, "Arv", B24:B26) -> 53 | G25: =DSUM(AM_1, "Maksumus", B24:B26) -> 400850 | I25: 2007-01-11 | J25: Valga | K25: Aragorn | L25: 1 | M25: 4990 | N25: 4990
B26: Tartu | I26: 2007-01-14 | J26: Pärnu | K26: Gandalf | L26: 3 | M26: 8490 | N26: 25470
I27: 2007-01-14 | J27: Tartu | K27: Frodo | L27: 4 | M27: 13300 | N27: 53200
I28: 2007-01-14 | J28: Valga | K28: Kalvar | L28: 2 | M28: 6990 | N28: 13980
B29: Linn | C29: Arvuti | F29: Arv | G29: Maksumus | I29: 2007-01-16 | J29: Tallinn | K29: Arven | L29: 5 | M29: 3690 | N29: 18450
B30: Tallinn | C30: Aragorn | F30: =DSUM(AM_1, "Arv", B29:C30) -> 3 | G30: =DSUM(AM_1, "Maksumus", B29:C30) -> 14970 | I30: 2007-01-17 | J30: Tallinn | K30: Balrog | L30: 7 | M30: 6990 | N30: 48930
I31: 2007-01-17 | J31: Tartu | K31: Aragorn | L31: 3 | M31: 4990 | N31: 14970
I32: 2007-01-18 | J32: Pärnu | K32: Eldar | L32: 1 | M32: 4650 | N32: 4650
B33: Arvuti | C33: Kuupäev | D33: Kuupäev | F33: Arv | G33: Maksumus | I33: 2007-01-18 | J33: Tallinn | K33: Aragorn | L33: 1 | M33: 4990 | N33: 4990
B34: Aragorn | C34: >=01.01.07 | D34: <=15.01.07 | F34: =DSUM(AM_1, "Arv", B33:D34) -> 3 | G34: =DSUM(AM_1, "Maksumus", B33:D34) -> 14970 | I34: 2007-01-19 | J34: Tallinn | K34: Frodo | L34: 3 | M34: 13300 | N34: 39900
I35: 2007-01-19 | J35: Tartu | K35: Kalvar | L35: 1 | M35: 6990 | N35: 6990
I36: 2007-01-19 | J36: Võru | K36: Elend | L36: 5 | M36: 12990 | N36: 64950
I37: 2007-01-20 | J37: Tallinn | K37: Elend | L37: 2 | M37: 12990 | N37: 25980
I38: 2007-01-20 | J38: Võru | K38: Sauron | L38: 3 | M38: 3390 | N38: 10170
I39: 2007-01-21 | J39: Pärnu | K39: Arven | L39: 1 | M39: 3690 | N39: 3690
I40: 2007-01-25 | J40: Võru | K40: Sauron | L40: 1 | M40: 3390 | N40: 3390
I41: 2007-01-26 | J41: Pärnu | K41: Gandalf | L41: 2 | M41: 8490 | N41: 16980

Sheet P_abi
B2: Puidu hinnkiri
B4: Liik | C4: Sort
C5: 1 | D5: 2 | E5: 3
B6: haab | C6: 500 | D6: =0.9*C6 -> 450 | E6: =0.8*C6 -> 400
B7: kask | C7: 700 | D7: 630 | E7: 560
B8: kuusk | C8: 800 | D8: 720 | E8: 640
B9: küte | C9: 470 | D9: 423 | E9: 376
B10: lepp | C10: 650 | D10: 585 | E10: 520
B11: mänd | C11: 750 | D11: 675 | E11: 600
B12: saar | C12: 850 | D12: 765 | E12: 680
B13: tamm | C13: 1100 | D13: 990 | E13: 880
B14: vaher | C14: 950 | D14: 855 | E14: 760
B18: P_müüjad | D18: Maakonnad
B19: Karu | D19: Harju
B20: Hunt | D20: Lääne
B21: Jänes | D21: Paide
B22: Rebane | D22: Pärnu
B23: Siil | D23: Rapla
B24: Põder | D24: Valga
B25: Ilves | D25: Viljandi
D26: Võru
B29: P_ostjad | C29: Maakond
B30: Haab | C30: Pärnu
B31: Ilves | C31: Lääne
B32: Juur | C32: Pärnu
B33: Kaasik | C33: Pärnu
B34: Karu | C34: Lääne
B35: Kask | C35: Pärnu
B36: Kass | C36: Paide
B37: Kaun | C37: Pärnu
B38: Kuusik | C38: Viljandi
B39: Kuusk | C39: Lääne
B40: Känd | C40: Harju
B41: Lepik | C41: Paide
B42: Lepp | C42: Viljandi
B43: Lind | C43: Valga
B44: Luik | C44: Viljandi
B45: Mänd | C45: Harju
B46: Paju | C46: Võru
B47: Pihel | C47: Rapla
B48: Saar | C48: Valga
B49: Seen | C49: Võru
B50: Tuvi | C50: Harju
B51: Vaher | C51: Rapla
B52: Varblane | C52: Harju
B53: Vares | C53: Rapla
